Workbook

Sheet Sales Order
B1: COMCAST BUSINESS CLASS HOSPITALITY SERVICE ORDER AGREEMENT v.10.6.14
B2: Account Name: | C2: Americas Best Value Inn | I2: ID#:
B4: CUSTOMER INFORMATION (Service Location)
B5: Address 1 | C5: 1954 S church Street | H5: City | I5: Murfreesboro | N5: =IF(I5="","",I5&", "&I6) -> Murfreesboro, Tennessee
B6: Address 2 | H6: State | I6: Tennessee
B7: Primary Contact Name | C7: Kenny Patel | H7: ZIP Code | I7: 37130
B8: Business Phone | C8: 615-896-6042 | H8: County
B9: Cell Phone | H9: Email Address | I9: abvi654@gmail.com
B10: Alt.Phone | H10: Primary Fax Number
B12: Technical Contact Name | H12: Technical Contact On-site?
B13: Technical Contact Business Phone | F13: Technical Contact Email
B14: Property Manager Contact Name | H14: Property Mgr Phone
B16: COMCAST BUSINESS CLASS HOSPITALITY SERVICES
C17: Selection (X)
B18: Hospitality Voice | C18: X | G18: Service Term (Months) | K18: 36
B19: Hospitality Internet | C19: X
B20: Hospitality Video | C20: X
B21: =IF(P62=1,"Business Class Public View TV","Business Class Private View TV") -> Business Class Public View TV | G21: Total Number of Hotel Guest Rooms | K21: 115
B23: COMCAST BUSINESS CLASS HOSPITALITY SERVICE DETAILS
B24: Hospitality Voice* | G24: Hospitality Video*
B25: VOICE SELECTIONS | C25: Quantity | D25: Unit Cost | E25: Total Cost | G25: VIDEO SELECTIONS (In Room Only) | I25: #Rooms | J25: Cost/Room | K25: Total Cost
B26: Full Featured Voice Lines | C26: 3 | D26: 39.95 | E26: =C26*D26 -> 119.85 | G26: Digital Standard | K26: =I26*J26 -> 0
B27: Basic Lines | C27: 3 | D27: 24.95 | E27: =C27*D27 -> 74.85 | G27: HD Standard | I27: 115 | J27: 7 | K27: =I27*J27 -> 805
B28: Toll Free Number | E28: =+C28*D28 -> 0 | G28: HBO | K28: =I28*J28 -> 0
B29: Voice - eMTA Equipment Fee | C29: 1 | D29: 12.95 | E29: =+C29*D29 -> 12.95 | G29: Showtime | K29: =I29*J29 -> 0
B30: Voicemail | E30: =+C30*D30 -> 0 | G30: VIDEO EQUIPMENT | I30: #Rooms / Select | J30: Cost/Room | K30: Total Cost
B31: VOICE OPTIONS | C31: Selection (X) | D31: Total Cost | G31: DTA | K31: =I31*J31 -> 0
B32: Directory Listing Suppression Fee | G32: DSTB | K32: =I32*J32 -> 0
B33: Auto-Attendant | G33: HDSTB | K33: =I33*J33 -> 0
B34: *Voice offers & options not available in all markets. | G34: mini mDTA | I34: X | K34: 75
G35: mDTA
G36: Q2Q | H36: Select TV Type
G37: HD-DTA | H37: Select Type | K37: =I37*J37 -> 0
G38: * In room only
B39: Hospitality Internet* | G39: Business Class Public View TV | N39: Included Boxes | O39: Type | P39: SD Charge Count | Q39: HD Charge Count | R39: Upgraded Outlet Discount | S39: SD Tier 1 | T39: SD Tier 2 | U39: HD Tier 1 | V39: HD Tier 2
B40: INTERNET SELECTIONS | C40: Selection (X) | D40: Total Cost | G40: TV SELECTIONS | I40: Selection (X) | J40: Total Cost | N40: =IF($G$39="Business Class Public View TV",1,0) -> 1 | O40: SD | P40: =IF(AND($O40="SD",$I41="X"),IF($I$54>=$N40,$I$54-$N40,0),IF(AND($O40="HD",$I41="X",$I$54>=($N40-$Q40)),$I$54-MAX(($N40-$Q40),0),0)) -> 0 | Q40: =IF(AND($O40="HD",$I41="X"),IF($I$55>=$N40,$I$55-$N40,0),IF(AND($I41="X",O40="SD"),$I$55,0)) -> 0 | R40: =IF(AND(P40=0,Q40>0,O40="SD"),MIN(Q40,(N40-$I$54))*'Pricing Table'!$K$37,0) -> 0 | S40: =IF($I41="X",IF($I$54=0,0,IF($I$54<9,P40,8-MAX($I$54-$P40,0))),0) -> 0 | T40: =IF($I41="X",P40-S40,0) -> 0 | U40: =IF($I41="X",IF($I$55=0,0,IF($I$55<9,Q40,8-MAX($I$55-$Q40,0))),0) -> 0 | V40: =IF($I41="X",Q40-U40,0) -> 0
B41: =+'Pricing Table'!B45 -> Starter - 1 Modem | G41: =+'Pricing Table'!W22 -> Basic | N41: =IF($G$39="Business Class Public View TV",1,0) -> 1 | O41: SD | P41: =IF(AND($O41="SD",$I42="X"),IF($I$54>=$N41,$I$54-$N41,0),IF(AND($O41="HD",$I42="X",$I$54>=($N41-$Q41)),$I$54-MAX(($N41-$Q41),0),0)) -> 0 | Q41: =IF(AND($O41="HD",$I42="X"),IF($I$55>=$N41,$I$55-$N41,0),IF(AND($I42="X",O41="SD"),$I$55,0)) -> 0 | R41: =IF(AND(P41=0,Q41>0,O41="SD"),MIN(Q41,(N41-$I$54))*'Pricing Table'!$K$37,0) -> 0 | S41: =IF($I42="X",IF($I$54=0,0,IF($I$54<9,P41,8-MAX($I$54-$P41,0))),0) -> 0 | T41: =IF($I42="X",P41-S41,0) -> 0 | U41: =IF($I42="X",IF($I$55=0,0,IF($I$55<9,Q41,8-MAX($I$55-$Q41,0))),0) -> 0 | V41: =IF($I42="X",Q41-U41,0) -> 0
B42: =+'Pricing Table'!B46 -> Starter - 2 Modems | C42: X | D42: 99.95 | G42: =+'Pricing Table'!W23 -> Digital Variety | N42: =IF($G$39="Business Class Public View TV",2,0) -> 2 | O42: SD | P42: =IF(AND($O42="SD",$I43="X"),IF($I$54>=$N42,$I$54-$N42,0),IF(AND($O42="HD",$I43="X",$I$54>=($N42-$Q42)),$I$54-MAX(($N42-$Q42),0),0)) -> 0 | Q42: =IF(AND($O42="HD",$I43="X"),IF($I$55>=$N42,$I$55-$N42,0),IF(AND($I43="X",O42="SD"),$I$55,0)) -> 0 | R42: =IF(AND(P42=0,Q42>0,O42="SD"),MIN(Q42,(N42-$I$54))*'Pricing Table'!$K$37,0) -> 0 | S42: =IF($I43="X",IF($I$54=0,0,IF($I$54<9,P42,8-MAX($I$54-$P42,0))),0) -> 0 | T42: =IF($I43="X",P42-S42,0) -> 0 | U42: =IF($I43="X",IF($I$55=0,0,IF($I$55<9,Q42,8-MAX($I$55-$Q42,0))),0) -> 0 | V42: =IF($I43="X",Q42-U42,0) -> 0
B43: =+'Pricing Table'!B47 -> Deluxe 50 | G43: =+'Pricing Table'!W24 -> Digital Standard | N43: =IF($G$39="Business Class Public View TV",2,0) -> 2 | O43: SD | P43: =IF(AND($O43="SD",$I44="X"),IF($I$54>=$N43,$I$54-$N43,0),IF(AND($O43="HD",$I44="X",$I$54>=($N43-$Q43)),$I$54-MAX(($N43-$Q43),0),0)) -> 0 | Q43: =IF(AND($O43="HD",$I44="X"),IF($I$55>=$N43,$I$55-$N43,0),IF(AND($I44="X",O43="SD"),$I$55,0)) -> 0 | R43: =IF(AND(P43=0,Q43>0,O43="SD"),MIN(Q43,(N43-$I$54))*'Pricing Table'!$K$37,0) -> 0 | S43: =IF($I44="X",IF($I$54=0,0,IF($I$54<9,P43,8-MAX($I$54-$P43,0))),0) -> 0 | T43: =IF($I44="X",P43-S43,0) -> 0 | U43: =IF($I44="X",IF($I$55=0,0,IF($I$55<9,Q43,8-MAX($I$55-$Q43,0))),0) -> 0 | V43: =IF($I44="X",Q43-U43,0) -> 0
B44: =+'Pricing Table'!B48 -> Deluxe 75 | G44: =+'Pricing Table'!W25 -> Digital Deluxe | N44: =IF($G$39="Business Class Public View TV",4,0) -> 4 | O44: HD | P44: =IF(AND($O44="SD",$I45="X"),IF($I$54>=$N44,$I$54-$N44,0),IF(AND($O44="HD",$I45="X",$I$54>=($N44-$Q44)),$I$54-MAX(($N44-$Q44),0),0)) -> 0 | Q44: =IF(AND($O44="HD",$I45="X"),IF($I$55>=$N44,$I$55-$N44,0),IF(AND($I45="X",O44="SD"),$I$55,0)) -> 0 | R44: =IF(AND(P44=0,Q44>0,O44="SD"),MIN(Q44,(N44-$I$54))*'Pricing Table'!$K$37,0) -> 0 | S44: =IF($I45="X",IF($I$54=0,0,IF($I$54<9,P44,8-MAX($I$54-$P44,0))),0) -> 0 | T44: =IF($I45="X",P44-S44,0) -> 0 | U44: =IF($I45="X",IF($I$55=0,0,IF($I$55<9,Q44,8-MAX($I$55-$Q44,0))),0) -> 0 | V44: =IF($I45="X",Q44-U44,0) -> 0
B45: =IF(+'Pricing Table'!B49="","",'Pricing Table'!B49) -> Deluxe 100 Plus | G45: =+'Pricing Table'!W26 -> Sports & Entertainment Deluxe
B46: =IF(+'Pricing Table'!B50="","",'Pricing Table'!B50) -> Equipment Fee: D3 Gateway(s) | G46: TV OPTIONS | I46: Selection (X) | J46: Total Cost
B47: INTERNET OPTIONS** | C47: Selection (X) | D47: Total Cost | G47: =+'Pricing Table'!W29 -> Sports Pack**
B48: Static IP - 1 | C48: X | D48: 14.95 | G48: =+'Pricing Table'!W30 -> Music Choice
B49: Static IP - 5 | G49: =+'Pricing Table'!W31 -> Canales Selecto***
B50: Static IP - 13 | G50: =+'Pricing Table'!W32 -> Other Equipment: mDTA
B51: Webhosting - Starter | G51: =+'Pricing Table'!W33 -> Other Equipment: mini mDTA
B52: Webhosting - Business | G52: =+'Pricing Table'!W34 -> Other Programming: | N52: Qty Threshold | O52: Price 1 Qty | P52: Price 2 Qty
B53: Webhosting - Commerce | G53: TV CONFIGURATION SUMMARY | I53: Quantity | J53: Total Cost | N53: 1 | O53: 1 | P53: =IF(I54="",0,+I54-O53) -> 0
B54: Webhosting - Professional | G54: =+'Pricing Table'!W37 -> Outlet plus equipment - SD | J54: =IF($G$39="Business Class Public View TV",SUMIF('Pricing Table'!$BD:$BD,"SD",'Pricing Table'!$BG:$BG),'Pricing Table'!X37*O53+'Pricing Table'!Y37*P53) -> 0 | N54: 8 | O54: =SUM(U40:U44) -> 0 | P54: =SUM(V40:V44) -> 0
B55: *Internet selections & options not available in all markets. ** If 5 or 13 static IPs are requested a static IP justification form is required. Microsoft Outlook Office Email and Webhosting options are for back office use only. | G55: =+'Pricing Table'!W38 -> Outlet plus equipment - HD | J55: =IF($G$39="Business Class Public View TV",SUMIF('Pricing Table'!$BD:$BD,"HD",'Pricing Table'!$BG:$BG),('Pricing Table'!X38*O54+'Pricing Table'!Y38*P54)) -> 0
G56: =IF('Pricing Table'!C18="Private View",'Pricing Table'!B138,'Pricing Table'!B141) -> *Not available in room, home offices or private view establishments . Video selections & options not available in all markets. **Available as add-on to Digital Standard & Digital Deluxe offers only. ***Requires a Digital Set Top Box.
B58: COMCAST BUSINESS CLASS HOSPITALITY TOTAL SERVICE CHARGES
B59: Installation | C59: Selection (X) | D59: Unit Cost | E59: Total Cost
B60: Installation Fee | E60: 0 | G60: Total Monthly Service Charge | J60: =SUM(D41:E46,D48:E50,D51:E54,J41:K45,J47:K52,J54:K55,E26:E30,D32:E33,K26:K29,K31:K36) -> 1202.55
B61: Voice Activation Fee* | C61: X | E61: =SUM(C26+C27)*'Pricing Table'!D75 -> 179.7
B62: Auto-Attendant Setup Fee | E62: =+D62 -> 0 | G62: Promotion Code (if applicable) | O62: Private View (0) or Public View (1) | P62: =IF('Pricing Table'!C18="Public View",1,0) -> 1 | R62: Note
B63: Voice Jack Fee | E63: =D63 -> 0 | G63: Less Discount (if applicable) | R63: Macro Reference Row 63
B64: Toll Free Activation Fee | E64: =C28*'Pricing Table'!D78 -> 0
B65: *per line activation fee, applies for any full featured or basic line | K65: =IF(Inputs!D7="","Custom Installation Charge May Apply… Enter OSP/ISP Capex on Inputs tab","") -> Custom Installation Charge May Apply… Enter OSP/ISP Capex on Inputs tab | N65: On - Off Driver | O65: Standard Cjharge | P65: Const Charge Override | Q65: Construction Charge Trigger
B66: Total Installation Charges: | D66: =+SUM(E60:E64) -> 179.7 | G66: Total Recurring Monthly Bill:* | J66: =IF(N66=0,O66,P66) -> 1202.55 | N66: =IF(Calcs!F12="",0,1*Q66) -> 0 | O66: =IF(Calcs!D167<0,"Requires Custom Installation Charge",+J60-J63) -> 1202.55 | P66: ='[3]Sales Order Form 3'!$Y$32=+J60-J63 -> FALSE | Q66: 1
B67: Total Custom Installation Charges: | D67: =IF(Inputs!D7="","Charge May Apply",ROUNDUP(Calcs!D147,0)) -> Charge May Apply | H67: *Applicable federal, state, and local taxes and fees may apply. | N67: Format Driver | O67: =IF(AND(0.25<P67,P67<0.35),1,IF(AND(0.15<P67,P67<0.25),2,IF(P67<0.15,3,0))) -> 0 | P67: =+Calcs!B17 -> 2.030150873
B69: General Instructions
B70: =IF(ISERROR(VLOOKUP($J$62,'Promo Codes'!$A:$B,2,FALSE)),"",VLOOKUP('Sales Order'!$J$62,'Promo Codes'!$A:$B,2,FALSE)) -> 
B78: COMCAST BUSINESS CLASS HOSPITALITY VOICE CONFIGURATION DETAILS
B86: Phone # (List "New" if new #) | C86: Type | E86: Voicemail | H86: Customer Equipment
H87: Phone System Type (Key System, PBX, Other)
H89: Phone System Manufacturer
H91: Fax Machine Manufacturer
H93: Alarm System Vendor
H95: Point of Sale Device
H97: Telco Closet Location
H101: Hunt Group Configuration Details
H103: Hunt Group Features Requested (Yes, No)
H105: Hunt Group Configuration Type
H107: Hunt Group 1 Pilot Number | J107: Hunt Group 2 Pilot Number
U108: None
U109: Sequential
H110: Directory Listing and Yellow Page Details
H111: Directory Listing
H112: Directory Listing Phone Number
H113: Directory Listing Display Name
H114: DA/DL Header Text Information
H115: DA/DL Header Code Information
H116: Standard Industry Code Information
B117: Toll Free # | C117: Calling Origination Area | E117: Associated TN | H117: Additional Voice Details
H118: Caller ID
H119: Caller ID Display Name (max 15 characters)
H120: Call Blocking
H121: Auto-Attendant
H122: Standard Industry Code Information
B125: CUSTOMER BILLING INFORMATION
B126: Billing Account Name | H126: City
B127: Billing Name (3rd Party Accounts) | H127: State
B128: Address 1 | H128: ZIP Code
B129: Address 2 | H129: Billing Contact Email
B130: Billing Contact Name | H130: Billing Contact Bus. Phone
B131: Tax Exempt?* | H131: Billing Fax Number
C132: *If yes, please provide and attach tax exemption certificate.
U135: NorthEast-SMB
U136: Central-SMB
U137: West-SMB
U138: NationalSales-NorthEast
U139: NationalSales-Central
U140: NationalSales-West
U141: NorthEast-ENT
U142: Central-ENT
U143: West-ENT
U144: NorthEast-TLK Group
U145: Central-TLK Group
U146: West-TLK Group
B152: CUSTOMER SIGNATURE | H152: FOR COMCAST USE ONLY
B153: By signing below, customer agrees and accepts the Terms and Conditions of this Agreement. General Terms and Conditions can be found at: http://business.comcast.com/terms-conditions | H153: Sales Representative:
H154: Sales Representative Code:
B155: Signature: | H155: Sales Manager/Director:
B156: Print: | I156: Sales Manager/Director Approval:
B157: Title: | I157: Division:
B158: Date: | I158: Opportunity ID: | J158: =IF(+J2="","",+J2) -> 
K160: v8 1.23

Sheet Pricing Table (hidden)
B3: Pricing Inputs | BC3: Public View Pricing Table
B4: Hospitality Video | BC4: OUTLET CONFIGURATION | BH4: SD Left | BI4: HD Left | BJ4: Box Type | BK4: DTA Count | BN4: OUTLET CALCS | BO4: 1-8 | BP4: 9+
B5: VIDEO SELECTIONS (In Room Only) | D5: Price #1 | E5: Price #2 | F5: Price #3 | G5: Price #4 | X5: Price #5+ | Y5: Price #5+ | Z5: Price #5+ | AA5: Price #5+ | AB5: Price #5+ | AC5: Price #5+ | AD5: Price #5+ | AE5: Price #5+ | AF5: Price #5+ | AG5: Price #5+ | AH5: Price #5+ | AI5: Price #5+ | AJ5: Price #5+ | AK5: Price #5+ | AL5: Price #5+ | AM5: Price #5+ | AN5: Price #5+ | AO5: Price #5+ | AP5: Price #5+ | AQ5: Price #5+ | AR5: Price #5+ | AS5: Price #5+ | AT5: Price #5+ | AU5: Price #5+ | AV5: Price #5+ | AW5: Price #5+ | AX5: Price #5+ | AY5: Price #5+ | AZ5: Price #5+ | BC5: OUTLET | BD5: Outlet Type | BE5: Included | BF5: Incl Type | BG5: Price | BH5: =BO8 -> 0 | BI5: =BO9 -> 0 | BK5: 0 | BN5: Outlet plus equipment - SD | BO5: 9.95 | BP5: 5.95
B6: Digital Standard | D6: 8 | X6: 9 | Y6: =+X6+1 -> 10 | Z6: =+Y6+1 -> 11 | AA6: 12 | AB6: 13 | AC6: 14 | AD6: 15 | AE6: 16 | AF6: 17 | AG6: 18 | AH6: 19 | AI6: 20 | AJ6: 21 | AK6: 22 | AL6: 23 | AM6: 24 | AN6: 25 | AO6: 26 | AP6: 27 | AQ6: 28 | AR6: 29 | AS6: 30 | AT6: 31 | AU6: 32 | AV6: 33 | AW6: 34 | AX6: =+AW6+1 -> 35 | AY6: 36 | AZ6: 37 | BC6: 1 | BD6: =IF($BI5>0,IF(AND($BF6="SD",$BH5>0),"SD","HD"),IF(BH5>0,"SD","")) ->  | BE6: =BC6<=SUM($BP$8:$BP$9) -> FALSE | BF6: =IF(BE6,IF($BP$8>0,$BN$8,IF($BP$9>0,$BN$9)),"") ->  | BG6: =IF(BF6=BD6,0,INDEX($BO$5:$BP$6,MATCH($BD6,$BN$8:$BN$9,0),IF(BC6>8,2,1))) -> 0 | BH6: =IF($BD6="SD",SUM(BH5,-1),BH5) -> 0 | BI6: =IF($BD6="HD",SUM(BI5,-1),BI5) -> 0 | BK6: 0 | BN6: Outlet plus equipment - HD | BO6: 12.95 | BP6: 8.95
B7: HD Standard | D7: 7 | E7: 9 | F7: 11 | BC7: 2 | BE7: =BC7<=SUM($BP$8:$BP$9) -> FALSE | BF7: =IF(BE7,IF($BP$8>0,$BN$8,IF($BP$9>0,$BN$9)),"") ->  | BG7: =IF(BF7=BD7,0,INDEX($BO$5:$BP$6,MATCH($BD7,$BN$8:$BN$9,0),IF(BC7>8,2,1))) -> 0 | BH7: =IF($BD7="SD",SUM(BH6,-1),BH6) -> 0 | BI7: =IF($BD7="HD",SUM(BI6,-1),BI6) -> 0 | BK7: 0 | BN7: Current Requests | BO7: Req | BP7: Incl | BQ7: Charge
B8: HBO | D8: 3.5 | BC8: 3 | BE8: FALSE | BG8: 0 | BH8: 0 | BI8: 0 | BK8: 0 | BN8: SD | BO8: ='Sales Order'!I54 -> 0 | BP8: =SUMIF($BO$12:$BO$16,$BN8,$BR$12:$BR$16) -> 0 | BQ8: 0
B9: Showtime | D9: 3.5 | BC9: 4 | BD9: =IF($BI8>0,IF(AND($BF9="SD",$BH8>0),"SD","HD"),IF(BH8>0,"SD","")) ->  | BE9: FALSE | BG9: 0 | BH9: 0 | BI9: 0 | BK9: 0 | BN9: HD | BO9: ='Sales Order'!I55 -> 0 | BP9: =SUMIF($BO$12:$BO$16,$BN9,$BR$12:$BR$16) -> 0 | BQ9: 0
B10: VIDEO EQUIPMENT | BC10: 5 | BD10: =IF($BI9>0,IF(AND($BF10="SD",$BH9>0),"SD","HD"),IF(BH9>0,"SD","")) ->  | BE10: FALSE | BG10: 0 | BH10: 0 | BI10: 0 | BK10: 0
B11: DTA | D11: 0.55 | E11: 0.01 | BC11: 6 | BE11: FALSE | BG11: 0 | BH11: 0 | BI11: 0 | BK11: 0 | BN11: INCLUDED OUTLETS | BO11: Type | BP11: Incl Count
B12: DSTB | D12: 2.2 | E12: 0.01 | BC12: 7 | BE12: FALSE | BG12: 0 | BH12: 0 | BI12: 0 | BK12: 0 | BN12: Basic | BO12: SD | BP12: 1 | BR12: =IFERROR(BN12=INDEX('Sales Order'!$G$41:$G$45,MATCH("X",'Sales Order'!$I$41:$I$45,0)),FALSE)*BP12 -> 0
B13: HDSTB | D13: 2.2 | BC13: 8 | BE13: FALSE | BG13: 0 | BH13: 0 | BI13: 0 | BK13: 0 | BN13: Digital Variety | BO13: SD | BP13: 1 | BR13: =IFERROR(BN13=INDEX('Sales Order'!$G$41:$G$45,MATCH("X",'Sales Order'!$I$41:$I$45,0)),FALSE)*BP13 -> 0
B14: mini mDTA | D14: 75 | BC14: 9 | BE14: FALSE | BG14: 0 | BH14: 0 | BI14: 0 | BK14: 0 | BN14: Digital Standard | BO14: SD | BP14: 2 | BR14: =IFERROR(BN14=INDEX('Sales Order'!$G$41:$G$45,MATCH("X",'Sales Order'!$I$41:$I$45,0)),FALSE)*BP14 -> 0
B15: mDTA | D15: 200 | E15: 0.01 | BC15: 10 | BE15: FALSE | BG15: 0 | BH15: 0 | BI15: 0 | BK15: 0 | BN15: Digital Deluxe | BO15: SD | BP15: 2 | BR15: =IFERROR(BN15=INDEX('Sales Order'!$G$41:$G$45,MATCH("X",'Sales Order'!$I$41:$I$45,0)),FALSE)*BP15 -> 0
B16: Q2Q | D16: 285 | BC16: 11 | BE16: FALSE | BG16: 0 | BH16: 0 | BI16: 0 | BK16: 0 | BN16: Sports & Entertainment Deluxe | BO16: HD | BP16: 4 | BR16: =IFERROR(BN16=INDEX('Sales Order'!$G$41:$G$45,MATCH("X",'Sales Order'!$I$41:$I$45,0)),FALSE)*BP16 -> 0
B17: HD-DTA | D17: 0.95 | BC17: 12 | BE17: FALSE | BG17: 0 | BH17: 0 | BI17: 0 | BK17: 0
B18: Select Private View or Public View | C18: =IF('Sales Order'!G39="Business Class Private View TV","Private View","Public View") -> Public View | BC18: 13 | BE18: FALSE | BG18: 0 | BH18: 0 | BI18: 0 | BK18: 0
BC19: 14 | BE19: FALSE | BG19: 0 | BH19: 0 | BI19: 0 | BK19: 0
B20: Business Class Private View TV | I20: Business Class Public View TV | P20: Usable Table | BC20: 15 | BE20: FALSE | BG20: 0 | BH20: 0 | BI20: 0 | BK20: 0
B21: TV SELECTIONS | D21: Price #1 | E21: Price #2 | F21: Price #3 | G21: Price #4 | I21: TV SELECTIONS | K21: Price #1 | L21: Price #2 | M21: Price #3 | N21: Price #4 | P21: TV SELECTIONS | R21: Price #1 | S21: Price #2 | T21: Price #3 | U21: Price #4 | X21: Price #1 | Y21: Price #2 | Z21: Price #3 | AA21: Price #4 | BC21: 16 | BE21: FALSE | BG21: 0 | BH21: 0 | BI21: 0 | BK21: 0
B22: Basic | D22: 4.95 | E22: 24.95 | I22: Basic | K22: 29.95 | P22: =IF($C$18="Private View",B22,I22) -> Basic | R22: =IF($C$18="Private View",D22,K22) -> 29.95 | S22: 0 | T22: 0 | U22: 0 | V22: =IF(P22="",0,IF(P22=0,0,1)) -> 1 | W22: =IF(V22=1,+P22,"") -> Basic | X22: =IF(R22>0,R22,"") -> 29.95 | Y22: =IF(S22>0,S22,"") ->  | Z22: =IF(T22>0,T22,"") ->  | AA22: =IF(U22>0,U22,"") ->  | BC22: 17 | BE22: FALSE | BG22: 0 | BH22: 0 | BI22: 0 | BK22: 0
B23: Select | D23: 14.95 | E23: 34.95 | I23: Digital Variety | K23: 54.95 | P23: =IF($C$18="Private View",B23,I23) -> Digital Variety | R23: 54.95 | S23: 0 | T23: 0 | U23: 0 | V23: 1 | W23: Digital Variety | X23: =IF(R23>0,R23,"") -> 54.95 | Y23: =IF(S23>0,S23,"") ->  | Z23: =IF(T23>0,T23,"") ->  | AA23: =IF(U23>0,U23,"") ->  | BC23: 18 | BE23: FALSE | BG23: 0 | BH23: 0 | BI23: 0 | BK23: 0
B24: Variety | D24: 29.95 | E24: 44.95 | I24: Digital Standard | K24: 84.95 | P24: =IF($C$18="Private View",B24,I24) -> Digital Standard | R24: 84.95 | S24: 0 | T24: 0 | U24: 0 | V24: 1 | W24: Digital Standard | X24: 84.95 | BC24: 19 | BE24: FALSE | BG24: 0 | BH24: 0 | BI24: 0 | BK24: 0
B25: Standard | D25: 59.95 | E25: 74.95 | I25: Digital Deluxe | K25: 109.95 | P25: =IF($C$18="Private View",B25,I25) -> Digital Deluxe | R25: 109.95 | S25: 0 | T25: 0 | U25: 0 | V25: 1 | W25: Digital Deluxe | X25: 109.95 | BC25: 20 | BE25: FALSE | BG25: 0 | BH25: 0 | BI25: 0 | BK25: 0
B26: Preferred | D26: 74.95 | E26: 89.95 | I26: Sports & Entertainment Deluxe | K26: 189.95 | P26: =IF($C$18="Private View",B26,I26) -> Sports & Entertainment Deluxe | R26: 189.95 | S26: 0 | T26: 0 | U26: 0 | V26: 1 | W26: Sports & Entertainment Deluxe | X26: 189.95 | BC26: 21 | BE26: FALSE | BG26: 0 | BH26: 0 | BI26: 0 | BK26: 0
B27: Music Choice Standalone | D27: 39.95 | R27: 0 | S27: 0 | T27: 0 | U27: 0 | V27: 0 | X27: =IF(R27>0,R27,"") ->  | Y27: =IF(S27>0,S27,"") ->  | Z27: =IF(T27>0,T27,"") ->  | AA27: =IF(U27>0,U27,"") ->  | BC27: 22 | BE27: FALSE | BG27: 0 | BH27: 0 | BI27: 0 | BK27: 0
B28: TV OPTIONS | I28: TV OPTIONS | P28: TV OPTIONS | BC28: 23 | BE28: FALSE | BG28: 0 | BH28: 0 | BI28: 0 | BK28: 0
B29: Sports Pack** | D29: 8.95 | I29: Sports Pack** | K29: 34.95 | P29: =IF($C$18="Private View",B29,I29) -> Sports Pack** | R29: =IF($C$18="Private View",D29,K29) -> 34.95 | S29: 0 | T29: 0 | U29: 0 | V29: =IF(P29="",0,IF(P29=0,0,1)) -> 1 | W29: =IF(V29=1,+P29,"") -> Sports Pack** | X29: =IF(R29>0,R29,"") -> 34.95 | Y29: =IF(S29>0,S29,"") ->  | Z29: =IF(T29>0,T29,"") ->  | AA29: =IF(U29>0,U29,"") ->  | BC29: 24 | BE29: FALSE | BG29: 0 | BH29: 0 | BI29: 0 | BK29: 0
B30: Music Choice | D30: 29.95 | E30: 39.95 | I30: Music Choice | K30: 29.95 | P30: Music Choice | R30: 29.95 | S30: 0 | T30: 0 | U30: 0 | V30: 1 | W30: Music Choice | X30: 29.95 | BC30: 25 | BE30: FALSE | BG30: 0 | BH30: 0 | BI30: 0 | BK30: 0
B31: Canales Selecto*** | D31: 15.95 | I31: Canales Selecto*** | K31: 15.95 | P31: Canales Selecto*** | R31: 15.95 | S31: 0 | T31: 0 | U31: 0 | V31: 1 | W31: Canales Selecto*** | X31: 15.95 | BC31: 26 | BE31: FALSE | BG31: 0 | BH31: 0 | BI31: 0 | BK31: 0
B32: Other Equipment: mDTA | D32: 450 | I32: Other Equipment: mDTA | K32: 450 | P32: Other Equipment: mDTA | R32: 450 | S32: 0 | T32: 0 | U32: 0 | V32: 1 | W32: Other Equipment: mDTA | X32: 450 | BC32: 27 | BE32: FALSE | BG32: 0 | BH32: 0 | BI32: 0 | BK32: 0
B33: Other Equipment: mini mDTA | D33: 200 | I33: Other Equipment: mini mDTA | K33: 200 | P33: Other Equipment: mini mDTA | R33: 200 | S33: 0 | T33: 0 | U33: 0 | V33: 1 | W33: Other Equipment: mini mDTA | X33: 200 | BC33: 28 | BE33: FALSE | BG33: 0 | BH33: 0 | BI33: 0 | BK33: 0
B34: Other Programming: | I34: Other Programming: | P34: Other Programming: | R34: 0 | S34: 0 | T34: 0 | U34: 0 | V34: 1 | W34: Other Programming: | BC34: 29 | BE34: FALSE | BG34: 0 | BH34: 0 | BI34: 0 | BK34: 0
R35: 0 | S35: 0 | T35: 0 | U35: 0 | V35: =IF(P35="",0,IF(P35=0,0,1)) -> 0 | BC35: 30 | BE35: FALSE | BG35: 0 | BH35: 0 | BI35: 0 | BK35: 0
B36: TV CONFIGURATION SUMMARY | I36: TV CONFIGURATION SUMMARY | P36: TV CONFIGURATION SUMMARY | BC36: 31 | BE36: FALSE | BG36: 0 | BH36: 0 | BI36: 0 | BK36: 0
B37: Outlet plus equipment | D37: 0 | E37: 9.95 | I37: Outlet plus equipment - SD | K37: 9.95 | L37: 5.95 | P37: =IF($C$18="Private View",B37,I37) -> Outlet plus equipment - SD | R37: =IF($C$18="Private View",D37,K37) -> 9.95 | S37: 5.95 | T37: 0 | U37: 0 | V37: =IF(P37="",0,IF(P37=0,0,1)) -> 1 | W37: =IF(V37=1,+P37,"") -> Outlet plus equipment - SD | X37: =IF(R37>0,R37,0) -> 9.95 | Y37: =IF(S37>0,S37,"") -> 5.95 | Z37: =IF(T37>0,T37,"") ->  | AA37: =IF(U37>0,U37,"") ->  | BC37: 32 | BE37: FALSE | BG37: 0 | BH37: 0 | BI37: 0 | BK37: 0
B38: HD Box Charges | D38: 5 | E38: 5 | I38: Outlet plus equipment - HD | K38: 12.95 | L38: 8.95 | P38: =IF($C$18="Private View",B38,I38) -> Outlet plus equipment - HD | R38: 12.95 | S38: 8.95 | T38: 0 | U38: 0 | V38: =IF(P38="",0,IF(P38=0,0,1)) -> 1 | W38: =IF(V38=1,+P38,"") -> Outlet plus equipment - HD | X38: =IF(R38>0,R38,"") -> 12.95 | Y38: =IF(S38>0,S38,"") -> 8.95 | BC38: 33 | BE38: FALSE | BG38: 0 | BH38: 0 | BI38: 0 | BK38: 0
V39: =IF(P39="",0,IF(P39=0,0,1)) -> 0 | W39: =IF(V39=1,+P39,"") ->  | Y39: =IF(S39>0,S39,"") ->  | BC39: 34 | BE39: FALSE | BG39: 0 | BH39: 0 | BI39: 0 | BK39: 0
BC40: 35 | BE40: FALSE | BG40: 0 | BH40: 0 | BI40: 0 | BK40: 0
B41: *Not available in room, home offices or public view establishments . Video selections & options not available in all markets. **Available as add-on to Digital Standard & Digital Preferred offers only. ***Requires a Digital Set Top Box, Not Available with Music Choice Standalone selection. | I41: *Not available in room, home offices or private view establishments . Video selections & options not available in all markets. **Available as add-on to Digital Standard & Digital Deluxe offers only. ***Requires a Digital Set Top Box. | P41: *Not available in room, home offices or private view establishments . Video selections & options not available in all markets. **Available as add-on to Digital Standard & Digital Deluxe offers only. ***Requires a Digital Set Top Box. | BC41: 36 | BE41: FALSE | BG41: 0 | BH41: 0 | BI41: 0 | BK41: 0
BC42: 37 | BE42: FALSE | BG42: 0 | BH42: 0 | BI42: 0 | BK42: 0
B43: Hospitality Internet | I43: Alternate / Revised Hospitality Internet - NOT IN USE | BC43: 38 | BE43: FALSE | BG43: 0 | BH43: 0 | BI43: 0 | BK43: 0
B44: INTERNET SELECTIONS | C44: Alt Name | D44: Price #1 | E44: Price #2 | F44: Price #3 | G44: Price #4 | I44: INTERNET SELECTIONS | J44: Alt Name | K44: Price #1 | L44: Price #2 | M44: Price #3 | N44: Price #4 | BC44: 39 | BE44: FALSE | BG44: 0 | BH44: 0 | BI44: 0 | BK44: 0
B45: Starter - 1 Modem | D45: 69.95 | I45: Starter | BC45: 40 | BE45: FALSE | BG45: 0 | BH45: 0 | BI45: 0 | BK45: 0
B46: Starter - 2 Modems | D46: 99.95 | I46: Deluxe | BC46: 41 | BE46: FALSE | BG46: 0 | BH46: 0 | BI46: 0 | BK46: 0
B47: Deluxe 50 | D47: 299.95 | I47: Deluxe 75 | BC47: 42 | BE47: FALSE | BG47: 0 | BH47: 0 | BI47: 0 | BK47: 0
B48: Deluxe 75 | D48: 399.95 | I48: Deluxe 100 Plus | BC48: 43 | BE48: FALSE | BG48: 0 | BH48: 0 | BI48: 0 | BK48: 0
B49: Deluxe 100 Plus | D49: 499.95 | BC49: 44 | BE49: FALSE | BG49: 0 | BH49: 0 | BI49: 0 | BK49: 0
B50: Equipment Fee: D3 Gateway(s) | D50: 9.95 | E50: 12.95 | F50: 0 | I50: Equipment Fee: D3 Gateway | BC50: 45 | BE50: FALSE | BG50: 0 | BH50: 0 | BI50: 0 | BK50: 0
B51: INTERNET OPTIONS** | I51: INTERNET OPTIONS** | BC51: 46 | BE51: FALSE | BG51: 0 | BH51: 0 | BI51: 0 | BK51: 0
B52: Static IP - 1 | D52: 14.95 | E52: 29.9 | I52: Static IP - 1 | BC52: 47 | BE52: FALSE | BG52: 0 | BH52: 0 | BI52: 0 | BK52: 0
B53: Static IP - 5 | D53: 19.95 | E53: 39.9 | I53: Static IP - 5 | BC53: 48 | BE53: FALSE | BG53: 0 | BH53: 0 | BI53: 0 | BK53: 0
B54: Static IP - 13 | D54: 34.95 | E54: 69.9 | I54: Static IP - 13 | BC54: 49 | BE54: FALSE | BG54: 0 | BH54: 0 | BI54: 0 | BK54: 0
B55: Webhosting - Starter | D55: Included | I55: Webhosting - Starter | BC55: 50 | BE55: FALSE | BG55: 0 | BH55: 0 | BI55: 0 | BK55: 0
B56: Webhosting - Business | D56: 19.95 | I56: Webhosting - Business
B57: Webhosting - Commerce | D57: 39.95 | I57: Webhosting - Commerce
B58: Webhosting - Professional | D58: 79.95 | I58: Webhosting - Professional
B60: Equipment Fee D3 Gateway Selection | D60: X | I60: Equipment Fee D3 Gateway Selection | K60: =IF('Sales Order'!K41<99,"X - Qty-1", "X - Qty-2") -> X - Qty-1
B62: Hospitality Voice
B63: VOICE SELECTIONS | D63: Price #1 | E63: Price #2 | F63: Price #3 | G63: Price #4
B64: Full Featured Voice Lines | D64: 59.95 | E64: 39.95
B65: Basic Lines | D65: 24.95
B66: Toll Free Number | D66: 5
B67: Voice - eMTA Equipment Fee | D67: 9.95 | E67: 12.95
B68: Voicemail | D68: 5
B70: VOICE OPTIONS
B71: Directory Listing Suppression Fee
B72: Auto-Attendant
B74: Installation
B75: Voice Activation Fee* | C75: $29.95 / Line | D75: 29.95
B76: Auto-Attendant Setup Fee
B77: Voice Jack Fee
B78: Toll Free Activation Fee | C78: $9.95 / Line | D78: 9.95
B86: State Listing | C86: Voice Line Type
B87: Alabama | C87: Not Applicable
B88: Arizona | C88: Pilot
B89: Arkansas | C89: Fax
B90: California | C90: Voice
B91: Colorado | C91: Auto-Attendant
B92: Connecticut | C92: Full Featured Line
B93: Delaware | C93: Basic Line
B94: District of Columbia
B95: Georgia
B96: Florida
B97: Idaho
B98: Illinois
B99: Indiana
B100: Iowa
B101: Kansas
B102: Kentucky
B103: Louisiana
B104: Maine
B105: Maryland
B106: Massachusetts
B107: Michigan
B108: Minnesota
B109: Mississippi
B110: Missouri
B111: Montanta
B112: Nebraska
B113: Nevada
B114: New Hampshire
B115: New Jersey
B116: New Mexico
B117: New York
B118: North Carolinia
B119: North Dakota
B120: Ohio
B121: Oklahoma
B122: Oregon
B123: Pennsylvania
B124: Rhode Island
B125: South Carolina
B126: South Dakota
B127: Tennessee
B128: Texas
B129: Utah
B130: Vermont
B131: Virginia
B132: Washington
B133: West Virginia
B134: Wisconsin
B135: Wyoming
B137: Private View Language
B138: *Not available in room, home offices or public view establishments . Video selections & options not available in all markets. **Available as add-on to Digital Standard & Digital Preferred offers only. ***Requires a Digital Set Top Box, Not Available with Music Choice Standalone selection.
B140: Public View Language
B141: *Not available in room, home offices or private view establishments . Video selections & options not available in all markets. **Available as add-on to Digital Standard & Digital Deluxe offers only. ***Requires a Digital Set Top Box.

Sheet Promo Codes (hidden)
A1: Promo Code | B1: Promo Description
A2: HOSPITALITY | B2: .
A3: HOSP:HIStarter-$30 | B3: $30 MRC Discount off Hospitality Internet Starter (2 modem solution)($99.95) for discounted rate of $69.95. Purchase of Hospitality Free To Guest Video Required. MRC Discounts roll to rate card end of original term. Minimum 3 year term required, 5 year if HD FTG Video. 50 rooms or less locations. Taxes, Usage, Fees, Equip are Extra
A4: HOSP:HID75-$150 | B4: $150 MRC Discount off Hospitality Internet D75 ($399.95) for discounted rate of $249.95. Purchase of Hospitality Free To Guest Video Required. MRC Discounts roll to rate card end of original term. Minimum 3 year term required, 5 year if HD FTG Video. Taxes, Usage, Fees, Equip are Extra
A5: HOSP:HID100+-$150_3yr | B5: $150 MRC Discount off Hospitality Internet D100+ ($499.95) for discounted rate of $349.95. Purchase of Hospitality Free To Guest Video Required. MRC Discounts roll to rate card end of original term. Minimum 3 year term required, 5 year if HD FTG Video. Taxes, Usage, Fees, Equip are Extra
A6: HOSP:HID50-$100_3yr | B6: $100 MRC Discount off Hospitality Internet D50 ($299.95) for discounted rate of $199.95. Purchase of Hospitality Free To Guest Video Required. MRC Discounts roll to rate card end of original term. Minimum 3 year term required, 5 year if HD FTG Video. Taxes, Usage, Fees, Equip are Extra
A7: HOSP_$7FTGHD | B7: $7 per room Hospitality FTG HD Video, a $4 MRC discount off rate card of $11 per room. Minimum Deluxe 50 Hospitality Internet or Ethernet Required. Minimum 65 room location required. 5 year term required. MRC Discount rolls to rate card at end of original term. Taxes, Usage, Equipment, Fees are extra
A8: HOSP_$7FTGHD_HID75-$150 | B8: $7 per room Hospitality FTG HD Video, a $4 MRC discount off rate card of $11 per room. $150 MRC Discount off Hospitality Internet Deluxe 75 ($399.95) for discounted rate of $249.95. Minimum 65 room location required. 5 year term required. MRC Discounts roll to rate card at end of original term. Taxes, Usage, Equipment, Fees are extra
A9: HOSP_$7FTGHD_HID100+-$150 | B9: $7 per room Hospitality FTG HD Video, a $4 MRC discount off rate card of $11 per room. $150 MRC Discount off Hospitality Internet Deluxe 100+ ($499.95) for discounted rate of $349.95. Minimum 65 room location required. 5 year term required. MRC Discounts roll to rate card at end of original term. Taxes, Usage, Equipment, Fees are extra
A10: HOSP_$7FTGHD_HID50-$100 | B10: $7 per room Hospitality FTG HD Video, a $4 MRC discount off rate card of $11 per room. $100 MRC Discount off Hospitality Internet Deluxe 50 ($299.95) for discounted rate of $199.95. Minimum 65 room location required. 5 year term required. MRC Discounts roll to rate card at end of original term. Taxes, Usage, Equipment, Fees are extra
A11: HOSP_$9FTGHD | B11: $9 per room Hospitality FTG HD Video, a $2 MRC discount off rate card of $11 per room. Minimum Deluxe 50 Hospitality Internet or Ethernet Required. Minimum 65 room location required. 5 year term required. MRC Discount rolls to rate card at end of original term. Taxes, Usage, Equipment, Fees are extra
A12: HOSP_$9FTGHD_HID75-$150 | B12: $9 per room Hospitality FTG HD Video, a $2 MRC discount off rate card of $11 per room. $150 MRC Discount off Hospitality Internet Deluxe 75 ($399.95) for discounted rate of $249.95. Minimum 65 room location required. 5 year term required. MRC Discounts roll to rate card at end of original term. Taxes, Usage, Equipment, Fees are extra
A13: HOSP_$9FTGHD_HID100+-$150 | B13: $9 per room Hospitality FTG HD Video, a $2 MRC discount off rate card of $11 per room. $150 MRC Discount off Hospitality Internet Deluxe 100+ ($499.95) for discounted rate of $349.95. Minimum 65 room location required. 5 year term required. MRC Discounts roll to rate card at end of original term. Taxes, Usage, Equipment, Fees are extra
A14: HOSP_$9FTGHD_HID50-$100 | B14: $9 per room Hospitality FTG HD Video, a $2 MRC discount off rate card of $11 per room. $100 MRC Discount off Hospitality Internet Deluxe 50 ($299.95) for discounted rate of $199.95. Minimum 65 room location required. 5 year term required. MRC Discounts roll to rate card at end of original term. Taxes, Usage, Equipment, Fees are extra
A15: #BCTPRI1FullBPHosp | B15: 1 Full Business Class Trunk PRI for $389, a $100 PRI MRC discount. Discount rolls to rate card at end of original term. For Hospitality locations only. Minimum 3 year term required. Taxes, Usage, Fees and equipment are extra.
A16: #BCTPRI2FullBPHosp | B16: 2 Full Business Class Trunk PRI for $738, a $240 total PRI MRC discount. Discount rolls to rate card at end of original term. For Hospitality locations only. Minimum 3 year term required. Taxes, Usage, Fees and equipment are extra.
A17: #BCTPRI1FracBPHosp | B17: 1 Fractional Business Class Trunk PRI for $299, a $50 PRI MRC discount. Discount rolls to rate card at end of original term. For Hospitality locations only. Minimum 3 year term required. Taxes, Usage, Fees and equipment are extra.
A18: #BCTPRI2FracBPHosp | B18: 2 Fractional Business Class Trunk PRI for $448, a $150 total PRI MRC discount. Discount rolls to rate card at end of original term. For Hospitality locations only. Minimum 3 year term required. Taxes, Usage, Fees and equipment are extra.
A19: #BCTPRI1.5BPHosp | B19: 1 Full and 1 Fractional Business Class Trunk PRI for $638, a $200 total PRI MRC discount. Discount rolls to rate card at end of original term. For Hospitality locations only. Minimum 3 year term required. Taxes, Usage, Fees and equipment are extra.
A20: #BCTPRI1FullBPHospWVI | B20: 1 Full Business Class Trunk PRI for $389, a $100 PRI MRC discount. Discount rolls to rate card at end of original term. For Hospitality locations only. Standard Installation Waived, expedited orders excluded. Minimum 3 year term required. Taxes, Usage, Fees and equipment are extra.
A21: #BCTPRI2FullBPHospWVI | B21: 2 Full Business Class Trunk PRI for $738, a $240 total PRI MRC discount. Discount rolls to rate card at end of original term. For Hospitality locations only. Standard Installation Waived, expedited orders excluded. Minimum 3 year term required. Taxes, Usage, Fees and equipment are extra.
A22: #BCTPRI1FracBPHospWVI | B22: 1 Fractional Business Class Trunk PRI for $299, a $50 PRI MRC discount. Discount rolls to rate card at end of original term. For Hospitality locations only. Standard Installation Waived, expedited orders excluded. Minimum 3 year term required. Taxes, Usage, Fees and equipment are extra.
A23: #BCTPRI2FracBPHospWVI | B23: 2 Fractional Business Class Trunk PRI for $448, a $150 total PRI MRC discount. Discount rolls to rate card at end of original term. For Hospitality locations only. Standard Installation Waived, expedited orders excluded. Minimum 3 year term required. Taxes, Usage, Fees and equipment are extra.
A24: #BCTPRI1.5BPHospWVI | B24: 1 Full and 1 Fractional Business Class Trunk PRI for $638, a $200 total PRI MRC discount. Discount rolls to rate card at end of original term. For Hospitality locations only. Standard Installation Waived, expedited orders excluded. Minimum 3 year term required. Taxes, Usage, Fees and equipment are extra.
A25: #BCTPRI1FullHosp1mfr | B25: 1 Full (1 x 23 channel) Business Class Trunk PRI for $489, plus 1 month waived of PRI MRC, value of $489, reflected on the bill in month 2 or 3. For Hospitality locations only. Minimum 3 year term required. Taxes, Usage, Fees and equipment are extra.
A26: #BCTPRI2FullHosp1mfr | B26: 2 Full Business Class Trunk PRI for $838, a $140 total PRI MRC discount. 1 month waived of PRI MRC, value of $978, reflected on the bill in month 2 or 3. For Hospitality locations only. Discount rolls to rate card at end of original term. Minimum 3 year term required. Taxes, Usage, Fees and equipment are extra.
A27: #BCTPRI1FracHosp1mfr | B27: 1 Fractional (1 x 6 channel) Business Class Trunks PRI (PRI)for $349, plus 1 month waived of PRI MRC, value of $349, reflected on the bill in month 2 or 3. For Hospitality locations only. Minimum 3 year term required. Taxes, Usage, Fees and equipment are extra.
A28: #BCTPRI2FracHosp1mfr | B28: 2 Fractional Business Class Trunk PRI for $598, a $100 total PRI MRC discount. 1 month waived of PRI MRC, value of $698, reflected on the bill in month 2 or 3. For Hospitality locations only. Discount rolls to rate card at end of original term. Minimum 3 year term required. Taxes, Usage, Fees and equipment are extra.
A29: #BCTPRI1.5Hosp1mfr | B29: 1 Full and 1 Fractional Business Class Trunk PRI for $738, a $100 total PRI MRC discount. 1 month waived of PRI MRC, value of $838, reflected on the bill in month 2 or 3. For Hospitality locations only. Discount rolls to rate card at end of original term. Minimum 3 year term required. Taxes, Usage, Fees and equipment are extra.
A30: #BCTPRI1FullHosp2mfr | B30: 1 Full Business Class Trunk PRI for $489. 2 months waived of PRI MRC, value of $489 each month, reflected on the bill in month 2 or 3. For Hospitality locations only. Discount rolls to rate card at end of original term. Minimum 3 year term required. Taxes, Usage, Fees and equipment are extra.
A31: #BCTPRI2FullHosp2mfr | B31: 2 Full Business Class Trunk PRI for $838, a $140 total PRI MRC discount. 2 months waived of PRI MRC, value of $978 each month, reflected on the bill in month 2 or 3. For Hospitality locations only. Discount rolls to rate card at end of original term. Minimum 3 year term required. Taxes, Usage, Fees and equipment are extra.
A32: #BCTPRI1FracHosp2mfr | B32: 1 Fractional Business Class Trunk PRI for $349. 2 months waived of PRI MRC, value of $349 each month, reflected on the bill in month 2 or 3. For Hospitality locations only. Discount rolls to rate card at end of original term. Minimum 3 year term required. Taxes, Usage, Fees and equipment are extra.
A33: #BCTPRI2FracHosp2mfr | B33: 2 Fractional Business Class Trunk PRI for $598, a $100 total PRI MRC discount. 2 months waived of PRI MRC, value of $698 each month, reflected on the bill in month 2 or 3. For Hospitality locations only. Discount rolls to rate card at end of original term. Minimum 3 year term required. Taxes, Usage, Fees and equipment are extra.
A34: #BCTPRI1.5Hosp2mfr | B34: 1 Full and 1 Fractional Business Class Trunk PRI for $738, a $100 total PRI MRC discount. 2 months waived of PRI MRC, value of $838, reflected on the bill in month 2 or 3. For Hospitality locations only. Discount rolls to rate card at end of original term. Minimum 3 year term required. Taxes, Usage, Fees and equipment are extra.
A35: #BCTPRI1FullHospWVI | B35: 1 Full Business Class Trunk PRI for $489. Standard Installation Waived, expedited orders excluded. For Hospitality locations only. Minimum 3 year term required. Taxes, Usage, Fees and equipment are extra.
A36: #BCTPRI2FullHospWVI | B36: 2 Full Business Class Trunk PRI for $838, a $140 total PRI MRC discount. Discount rolls to rate card at end of original term. Standard Installation Waived, expedited orders excluded. For Hospitality locations only. Minimum 3 year term required. Taxes, Usage, Fees and equipment are extra.
A37: #BCTPRI1FracHospWVI | B37: 1 Fractional Business Class Trunk PRI for $349. Standard Installation Waived, expedited orders excluded. For Hospitality locations only. Minimum 3 year term required. Taxes, Usage, Fees and equipment are extra.
A38: #BCTPRI2FracHospWVI | B38: 2 Fractional Business Class Trunk PRI for $598, a $100 total PRI MRC discount. Discount rolls to rate card at end of original term. Standard Installation Waived, expedited orders excluded. For Hospitality locations only. Minimum 3 year term required. Taxes, Usage, Fees and equipment are extra.
A39: #BCTPRI1.5HospWVI | B39: 1 Full and 1 Fractional Business Class Trunk PRI for $738, a $100 total PRI MRC discount. Discount rolls to rate card at end of original term. Standard Installation Waived, expedited orders excluded. For Hospitality locations only. Minimum 3 year term required. Taxes, Usage, Fees and equipment are extra.
A40: #BCTPRI1FullHosp1mfrWVI | B40: 1 Full (1 x 23 channel) Business Class Trunk PRI for $489, plus 1 month waived of PRI MRC, value of $489, reflected on the bill in month 2 or 3. For Hospitality locations only. Standard Installation Waived, expedited orders excluded. Minimum 3 year term required. Taxes, Usage, Fees and equipment are extra.
A41: #BCTPRI2FullHosp1mfrWVI | B41: 2 Full Business Class Trunk PRI for $838, a $140 total PRI MRC discount. 1 month waived of PRI MRC, value of $978, reflected on the bill in month 2 or 3. For Hospitality locations only. Standard Installation Waived, expedited orders excluded. Discount rolls to rate card at end of original term. Minimum 3 year term required. Taxes, Usage, Fees and equipment are extra.
A42: #BCTPRI1FracHosp1mfrWVI | B42: 1 Fractional (1 x 6 channel) Business Class Trunks PRI (PRI)for $349, plus 1 month waived of PRI MRC, value of $349, reflected on the bill in month 2 or 3. For Hospitality locations only. Standard Installation Waived, expedited orders excluded. Minimum 3 year term required. Taxes, Usage, Fees and equipment are extra.
A43: #BCTPRI2FracHosp1mfrWVI | B43: 2 Fractional Business Class Trunk PRI for $598, a $100 total PRI MRC discount. 1 month waived of PRI MRC, value of $698, reflected on the bill in month 2 or 3. For Hospitality locations only. Standard Installation Waived, expedited orders excluded. Discount rolls to rate card at end of original term. Minimum 3 year term required. Taxes, Usage, Fees and equipment are extra.
A44: #BCTPRI1.5Hosp1mfrWVI | B44: 1 Full and 1 Fractional Business Class Trunk PRI for $738, a $100 total PRI MRC discount. 1 month waived of PRI MRC, value of $838, reflected on the bill in month 2 or 3. For Hospitality locations only. Standard Installation Waived, expedited orders excluded. Discount rolls to rate card at end of original term. Minimum 3 year term required. Taxes, Usage, Fees and equipment are extra.
A45: #BCTPRI1FullHosp2mfrWVI | B45: 1 Full Business Class Trunk PRI for $489. 2 months waived of PRI MRC, value of $489 each month, reflected on the bill in month 2 or 3. For Hospitality locations only. Standard Installation Waived, expedited orders excluded. Minimum 3 year term required. Taxes, Usage, Fees and equipment are extra.
A46: #BCTPRI2FullHosp2mfrWVI | B46: 2 Full Business Class Trunk PRI for $838, a $140 total PRI MRC discount. 2 months waived of PRI MRC, value of $978 each month, reflected on the bill in month 2 or 3. For Hospitality locations only. Standard Installation Waived, expedited orders excluded. Discount rolls to rate card at end of original term. Minimum 3 year term required. Taxes, Usage, Fees and equipment are extra.
A47: #BCTPRI1FracHosp2mfrWVI | B47: 1 Fractional Business Class Trunk PRI for $349. 2 months waived of PRI MRC, value of $349 each month, reflected on the bill in month 2 or 3. For Hospitality locations only. Standard Installation Waived, expedited orders excluded. Minimum 3 year term required. Taxes, Usage, Fees and equipment are extra.
A48: #BCTPRI2FracHosp2mfrWVI | B48: 2 Fractional Business Class Trunk PRI for $598, a $100 total PRI MRC discount. 2 months waived of PRI MRC, value of $698 each month, reflected on the bill in month 2 or 3. For Hospitality locations only. Standard Installation Waived, expedited orders excluded. Discount rolls to rate card at end of original term. Minimum 3 year term required. Taxes, Usage, Fees and equipment are extra.
A49: #BCTPRI1.5Hosp2mfrWVI | B49: 1 Full and 1 Fractional Business Class Trunk PRI for $738, a $100 total PRI MRC discount. 2 months waived of PRI MRC, value of $838, reflected on the bill in month 2 or 3. For Hospitality locations only. Standard Installation Waived, expedited orders excluded. Discount rolls to rate card at end of original term. Minimum 3 year term required. Taxes, Usage, Fees and equipment are extra.
A50: #BCTPRI1FullHosp | B50: 1 Full Business Class Trunk PRI for $489. For Hospitality locations only. Minimum 3 year term required. Taxes, Usage, Fees and equipment are extra.
A51: #BCTPRI2FullHosp | B51: 2 Full Business Class Trunk PRI for $838, a $140 total PRI MRC discount. For Hospitality locations only. Discount rolls to rate card at end of original term. Minimum 3 year term required. Taxes, Usage, Fees and equipment are extra.
A52: #BCTPRI1FracHosp | B52: 1 Fractional Business Class Trunk PRI for $349. For Hospitality locations only. Minimum 3 year term required. Taxes, Usage, Fees and equipment are extra.
A53: #BCTPRI2FracHosp | B53: 2 Fractional Business Class Trunk PRI for $598, a $100 total PRI MRC discount. For Hospitality locations only. Discount rolls to rate card at end of original term. Minimum 3 year term required. Taxes, Usage, Fees and equipment are extra.
A54: #BCTPRI1.5Hosp | B54: 1 Full and 1 Fractional Business Class Trunk PRI for $738, a $100 total PRI MRC discount. For Hospitality locations only. Discount rolls to rate card at end of original term. Minimum 3 year term required. Taxes, Usage, Fees and equipment are extra.

Sheet Inputs
B2: Construction Charge Inputs and Generator
B4: Account Name ….….……………………..................... | C4: =IF(+'Sales Order'!C2="","",+'Sales Order'!C2) -> Americas Best Value Inn
B5: Lead / Opportunity ID ….….……………………… | C5: =IF(+'Sales Order'!J2="","",+'Sales Order'!J2) -> 
B7: Total OSP/ISP Construction Capex ….….…
B8: Total Fiber Construction Capex ………………………….……….. | D8: 0
B9: Sales Channel …………………….…….….…
B10: Lead / Opportunity ID ………………………………...… | D10: =IF(+'Sales Order'!J2="","",+'Sales Order'!J2) -> 
B11: Service Term (Months)……………………………………………..………………………………………………..…… | D11: =IF(+'Sales Order'!K18="","Select Term on Sales Order",'Sales Order'!K18) -> 36
B12: Total Hospitality Service MRC ……………………………. | D12: =+'Sales Order'!J66 -> 1202.55 | G12: =IF(+Calcs!B17="NA",0,+Calcs!B17) -> 2.030150873 | H12: =IF(AND(0.25<G12,G12<0.35),1,IF(AND(0.15<G12,G12<0.25),2,IF(G12<0.15,3,0))) -> 0
B13: Total Hospitality Service NRC ………………………. | D13: =+'Sales Order'!D66 -> 179.7
B14: Custom Installation Charge ……………………… | D14: =+'Sales Order'!D67 -> Charge May Apply
B23: Optional Notes / Comments

Sheet Calcs (hidden)
A1: Hospitality Services Financial Model
A2: =IF(+'Sales Order'!C2="","", 'Sales Order'!C2) -> Americas Best Value Inn
A3: =+'Sales Order'!N5 -> Murfreesboro, Tennessee
A4: Opportunity Summary | D4: Financial Summary | E4: 1-Yr | F4: 2-Yr | G4: 3-Yr | H4: 4-Yr | I4: 5-Yr
A5: # Rooms | B5: =+'Sales Order'!K21 -> 115 | D5: GCV | E5: =SUM(D148:P148) -> 16313.02019 | F5: =SUM(D148:AB148) -> 30743.62019 | G5: =SUM($D$148:AN148) -> 45174.22019 | H5: =SUM($D$148:AZ148) -> 59604.82019 | I5: =SUM($D$148:BL148) -> 74035.42019
A6: Construction Capex | B6: =+Inputs!D7+Inputs!D8 -> 0 | D6: IRR | E6: =+P163 -> 1.558594337 | F6: =+AB163 -> 1.984779852 | G6: =+AN163 -> 2.030150873 | H6: =+AZ163 -> 2.036526319 | I6: =+BL163 -> 2.037480322
A7: Equip & Labor Capex | B7: =+J109 -> 5074 | D7: Break Even Month | E7: =+BL166 -> 7 | F7: =+BL166 -> 7 | G7: =+F7 -> 7 | H7: =+G7 -> 7 | I7: 7
A8: Total Capex | B8: =+B7+B6 -> 5074 | D8: OCF Margin (3-Yr Avg) | E8: =+AN157 -> 0.5604507089 | F8: =+AN157 -> 0.5604507089 | G8: =+F8 -> 0.5604507089 | H8: =+G8 -> 0.5604507089 | I8: =+H8 -> 0.5604507089
A9: Term (months) | B9: =+'Sales Order'!K18 -> 36 | D9: Net FCF | E9: =+P162 -> 4016.06019 | F9: =+AB162 -> 12103.70019 | G9: =+AN162 -> 20191.34019 | H9: =+AZ162 -> 28278.98019 | I9: =+BL162 -> 36366.62019
A10: Total MRC | B10: =+E109 -> 1202.55 | D10: Equity Multiple (FCF to Capex) | E10: =1+(+E9/$C$245) -> 1.225191218 | F10: =1+(+F9/$C$245) -> 1.678686789 | G10: =1+(+G9/$C$245) -> 2.132182359 | H10: =1+(+H9/$C$245) -> 2.585677929 | I10: =1+(+I9/$C$245) -> 3.0391735
A11: Total NRC | B11: =+F109 -> 174
A12: Custom Install Charge (NRC) | B12: =+'Sales Order'!D67 -> Charge May Apply | E12: Construction Charge Override:
A13: GCV | B13: =IF($B$9=12,E5,IF($B$9=24,F5,IF($B$9=36,G5,IF($B$9=48,H5,IF($B$9=60,I5,NA))))) -> 45174.22019
A14: HD Service | B14: =IF('Sales Order'!I27>0,"Yes","No") -> Yes | D14: Additional Services - Revenue and Cost Driver Sensitivity
A15: Premium Channel Svc | B15: =IF(('Sales Order'!I28+'Sales Order'!I29)>0,"Yes","No") -> No | D15: Incremental OSP/ISP Capex
A16: Financial Summary | D16: Metro-E Revenue (MRC) | H16: # Metro-E Sites
A17: IRR | B17: =IF($B$9=12,E6,IF($B$9=24,F6,IF($B$9=36,G6,IF($B$9=48,H6,IF($B$9=60,I6,NA))))) -> 2.030150873 | D17: PRI Revenue (MRC) | H17: # PRI Sites
A18: Break Even Month | B18: =IF($B$9=12,E7,IF($B$9=24,F7,IF($B$9=36,G7,IF($B$9=48,H7,IF($B$9=60,I7,NA))))) -> 7 | D18: BVE Revenue (MRC) | H18: # BVE Sites
A19: OCF Margin (3-Yr Avg) | B19: =IF($B$9=12,E8,IF($B$9=24,F8,IF($B$9=36,G8,IF($B$9=48,H8,IF($B$9=60,I8,NA))))) -> 0.5604507089 | D19: One Time Charge(s) (NRC)
A20: Net FCF | B20: =IF($B$9=12,E9,IF($B$9=24,F9,IF($B$9=36,G9,IF($B$9=48,H9,IF($B$9=60,I9,NA))))) -> 20191.34019 | D20: Custom Installation Charge
A21: Equity Multiple (FCF to Capex) | B21: =IF($B$9=12,E10,IF($B$9=24,F10,IF($B$9=36,G10,IF($B$9=48,H10,IF($B$9=60,I10,NA))))) -> 2.132182359
D22: Financial Summary | E22: 1-Yr | F22: 2-Yr | G22: 3-Yr | H22: 4-Yr | I22: 5-Yr
A23: Financial Summary w/ Addl Revenue | D23: GCV | E23: =SUM(D186:P186) -> 14604.6 | F23: =SUM(D186:AB186) -> 29035.2 | G23: =SUM($D$186:AN186) -> 43465.8 | H23: =SUM($D$186:AZ186) -> 57896.4 | I23: =SUM($D$186:BL186) -> 72327
A24: IRR | B24: =IF($B$9=12,E24,IF($B$9=24,F24,IF($B$9=36,G24,IF($B$9=48,H24,IF($B$9=60,I24,NA))))) -> 1.389790907 | D24: IRR | E24: =+P201 -> 0.6850160927 | F24: =+AB201 -> 1.295072352 | G24: =+AN201 -> 1.389790907 | H24: =+AZ201 -> 1.410623562 | I24: =+BL201 -> 1.41575746
A25: Break Even Month | B25: =IF($B$9=12,E25,IF($B$9=24,F25,IF($B$9=36,G25,IF($B$9=48,H25,IF($B$9=60,I25,NA))))) -> 9 | D25: Break Even Month | E25: =+BL204 -> 9 | F25: =+BL204 -> 9 | G25: =+F25 -> 9 | H25: =+G25 -> 9 | I25: =+H25 -> 9
A26: OCF Margin (3-Yr Avg) | B26: =IF($B$9=12,E26,IF($B$9=24,F26,IF($B$9=36,G26,IF($B$9=48,H26,IF($B$9=60,I26,NA))))) -> 0.5604507089 | D26: OCF Margin (3-Yr Avg) | E26: =+AN195 -> 0.5604507089 | F26: =+AN195 -> 0.5604507089 | G26: =+F26 -> 0.5604507089 | H26: =+G26 -> 0.5604507089 | I26: =+H26 -> 0.5604507089
A27: Net FCF | B27: =IF($B$9=12,E27,IF($B$9=24,F27,IF($B$9=36,G27,IF($B$9=48,H27,IF($B$9=60,I27,NA))))) -> 18482.92 | D27: Net FCF | E27: =+P200 -> 2307.64 | F27: =+AB200 -> 10395.28 | G27: =+AN200 -> 18482.92 | H27: =+AZ200 -> 26570.56 | I27: =+BL200 -> 34658.2
A28: Equity Multiple (FCF to Capex) | B28: =IF($B$9=12,E28,IF($B$9=24,F28,IF($B$9=36,G28,IF($B$9=48,H28,IF($B$9=60,I28,NA))))) -> 2.036386677 | D28: Equity Multiple (FCF to Capex) | E28: =1+(+E27/$C$245) -> 1.129395537 | F28: =1+(+F27/$C$245) -> 1.582891107 | G28: =1+(+G27/$C$245) -> 2.036386677 | H28: =1+(+H27/$C$245) -> 2.489882247 | I28: =1+(+I27/$C$245) -> 2.943377818
A34: Hospitality Video | D34: Revenue | G34: Opex | J34: Capex
A35: Hospitality (In Room Only) | C35: #Rooms / Quantity | D35: Revenue / Room | E35: Total Monthly Revenue | F35: One Time Revenue | G35: Opex % or $ | H35: Monthly Opex $ | I35: One-Time Opex $ | J35: One-Time (Equip + Labor)
A36: Digital Standard | C36: =+'Sales Order'!I26 -> 0 | D36: =+'Sales Order'!J26 -> 0 | E36: =C36*D36 -> 0 | F36: 0 | G36: 0.4 | H36: =+G36*E36 -> 0 | I36: 0 | J36: 0
A37: HD Standard | C37: =+'Sales Order'!I27 -> 115 | D37: =+'Sales Order'!J27 -> 7 | E37: =C37*D37 -> 805 | F37: 0 | G37: 0.4 | H37: =+G37*E37 -> 322 | J37: 0
A38: HBO | C38: =+'Sales Order'!I28 -> 0 | D38: =+'Sales Order'!J28 -> 0 | E38: =C38*D38 -> 0 | F38: 0 | G38: 3.21 | H38: =+G38*C38 -> 0 | J38: 0
A39: Showtime | C39: =+'Sales Order'!I29 -> 0 | D39: =+'Sales Order'!J29 -> 0 | E39: =C39*D39 -> 0 | F39: 0 | G39: 3.21 | H39: =+G39*C39 -> 0
A40: Hospitality (Public View)
A41: Basic | C41: =IF('Sales Order'!I41="",0,1) -> 0 | D41: =+'Sales Order'!J41 -> 0 | E41: =+D41*C41 -> 0 | F41: 0 | G41: 0.4 | H41: =+G41*E41 -> 0
A42: Digital Basic Plus | C42: =IF('Sales Order'!I42="",0,1) -> 0 | D42: =+'Sales Order'!J42 -> 0 | E42: 0 | F42: 0 | G42: 0.4 | H42: 0
A43: Digital Standard | C43: =IF('Sales Order'!I43="",0,1) -> 0 | D43: =+'Sales Order'!J43 -> 0 | E43: 0 | F43: 0 | G43: 0.4 | H43: 0
A44: Digital Deluxe | C44: =IF('Sales Order'!I44="",0,1) -> 0 | D44: =+'Sales Order'!J44 -> 0 | E44: 0 | F44: 0 | G44: 0.4 | H44: 0
A45: Sports & Entertainment Deluxe | C45: =IF('Sales Order'!I45="",0,1) -> 0 | D45: =+'Sales Order'!J45 -> 0 | E45: 0 | F45: 0 | G45: 0.4 | H45: 0
A46: Sports Pack** | C46: =IF('Sales Order'!I47="",0,1) -> 0 | D46: =+'Sales Order'!J47 -> 0 | E46: 0 | F46: 0 | G46: 0.4 | H46: 0
A47: Music Choice | C47: =IF('Sales Order'!I48="",0,1) -> 0 | D47: =+'Sales Order'!J48 -> 0 | E47: 0 | F47: 0 | G47: 0.4 | H47: 0
A48: Canales Selecto | C48: =IF('Sales Order'!I49="",0,1) -> 0 | D48: =+'Sales Order'!J49 -> 0 | E48: 0 | F48: 0 | G48: 0.4 | H48: 0
A49: Other Equipment: mDTA | C49: =IF('Sales Order'!I50="",0,1) -> 0 | D49: =+'Sales Order'!J50 -> 0 | E49: 0 | F49: 0 | G49: 0 | H49: 0
A50: Other Equipment: mini mDTA | C50: =IF('Sales Order'!I51="",0,1) -> 0 | D50: =+'Sales Order'!J51 -> 0 | E50: 0 | F50: 0 | G50: 0 | H50: 0
A51: Other Programming: | C51: =IF('Sales Order'!I52="",0,1) -> 0 | D51: =+'Sales Order'!J52 -> 0 | E51: 0 | F51: 0 | G51: 0 | H51: 0
A53: VIDEO EQUIPMENT
A54: DTA | C54: =+'Sales Order'!I31 -> 0 | D54: =+'Sales Order'!J31 -> 0 | E54: =C54*D54 -> 0 | F54: 0 | G54: 0 | H54: =+G54*E54 -> 0 | J54: =+C54*(B217+C217) -> 0
A55: DSTB | C55: =+'Sales Order'!I32 -> 0 | D55: =+'Sales Order'!J32 -> 0 | E55: 0 | F55: 0 | G55: 0 | H55: 0 | J55: =+C55*(B223+C223) -> 0
A56: HDSTB | C56: =+'Sales Order'!I33 -> 0 | D56: =+'Sales Order'!J33 -> 0 | E56: =C56*D56 -> 0 | F56: 0 | G56: 0 | H56: 0 | J56: =+C56*(B219+C219) -> 0
A57: mini mDTA | C57: =IF('Sales Order'!I34="",0,1) -> 1 | D57: =+'Sales Order'!K34 -> 75 | E57: =+D57 -> 75 | F57: 0 | G57: 0 | H57: 0 | J57: =+C57*(B221+C221) -> 4500
A58: mDTA | C58: =IF('Sales Order'!I35="",0,1) -> 0 | D58: =+'Sales Order'!K35 -> 0 | E58: =+D58 -> 0 | F58: 0 | G58: 0 | H58: 0 | J58: =+C58*(B220+C220) -> 0
A59: Q2Q | C59: =IF('Sales Order'!I36="",0,1) -> 0 | D59: =+'Sales Order'!K36 -> 0 | E59: =+D59 -> 0 | F59: 0 | G59: 0 | H59: 0 | J59: =+C59*(B222+C222) -> 0
A60: HD-DTA | C60: =+'Sales Order'!I37 -> 0 | D60: =+'Sales Order'!K37 -> 0 | E60: =+D60 -> 0 | F60: 0 | G60: 0 | H60: =+G60*E60 -> 0 | J60: =+C60*(B218+C218) -> 0
A61: Outlet plus equipment | C61: =+'Sales Order'!I54 -> 0 | D61: =+'Sales Order'!J54 -> 0 | E61: =+D61 -> 0 | F61: 0 | G61: 0 | H61: =+G61*E61 -> 0
A63: Other Opex | B63: Detail | C63: Quantity | D63: Cost per Unit | E63: Monthly | F63: Opex Driver (Yes = 1, No = 0) | H63: Monthly Opex $ | I63: One-Time Opex $ | J63: Capex
A64: Truck Rolls / Yr | B64: 94.5 | C64: 4 | D64: =+C64*B64 -> 378 | E64: =+D64/12 -> 31.5 | F64: =IF($E$73>0,1,0) -> 1 | H64: =+E64*F64 -> 31.5
A65: Commissions | B65: Multiple of MRC | C65: 1 | F65: 1 | I65: =(+C65*E73)*F65 -> 880
A66: Maintenance | B66: 450/Yr | D66: 450 | E66: =+D66/12 -> 37.5 | F66: 1 | H66: =+E66*F66 -> 37.5
A67: Bad Debt | B67: 1% of MRC | F67: 1 | H67: =+E67*F67 -> 0
A68: Customer Service | B68: $0.08 per Room / Mo | D68: 0.08 | F68: 1 | H68: =(+D68*$B$5)*F68 -> 9.2
A69: Billing | B69: $0.01 per Room /Mo | D69: 0.01 | F69: 1 | H69: =(+D69*$B$5)*F69 -> 1.15
A70: NETO | B70: $0.01 per Room / Mo | D70: 0.01 | F70: 1 | H70: =(+D70*$B$5)*F70 -> 1.15
A71: Sales Overhead | B71: $0.05 per Room / Mo | D71: 0.05 | F71: 1 | H71: =(+D71*$B$5)*F71 -> 5.75
A73: Total Hospitality Video | E73: =SUM(E36:E61) -> 880 | G73: =+H73/E73 -> 0.4639204545 | H73: =SUM(H36:H72) -> 408.25 | I73: =SUM(I36:I72) -> 880 | J73: =SUM(J36:J72) -> 4500
A75: Hospitality Voice | D75: Revenue | G75: Opex | J75: Capex
C76: Quantity | D76: Unit Price | E76: Total Monthly Revenue | F76: One Time Revenue | G76: Opex % | H76: Monthly Opex $ | I76: One-Time Opex $ | J76: One-Time (Equip + Labor)
A77: Full Featured Voice Lines | C77: =+'Sales Order'!C26 -> 3 | D77: =+'Sales Order'!D26 -> 39.95 | E77: =+D77*C77 -> 119.85 | F77: =+C77*29 -> 87 | G77: 0.5 | H77: =+G77*E77 -> 59.925 | I77: 0
A78: Basic Lines | C78: =+'Sales Order'!C27 -> 3 | D78: =+'Sales Order'!D27 -> 24.95 | E78: =+D78*C78 -> 74.85 | F78: =+C78*29 -> 87 | G78: 0.5 | H78: 37.425
A79: Toll Free Number | C79: =+'Sales Order'!C28 -> 0 | D79: =+'Sales Order'!D28 -> 0 | E79: =+D79*C79 -> 0 | F79: =+C79*9.9 -> 0 | G79: 0.5 | H79: 0
A80: Voice - eMTA Equipment Fee | C80: =+'Sales Order'!C29 -> 1 | D80: =+'Sales Order'!D29 -> 12.95 | E80: =+D80*C80 -> 12.95 | G80: 0 | H80: 0
A81: Voicemail | C81: =+'Sales Order'!C30 -> 0 | D81: =+'Sales Order'!D30 -> 0 | E81: =+D81*C81 -> 0 | G81: 0.5 | H81: =+G81*E81 -> 0
A82: Directory Listing Suppression Fee | C82: =+'Sales Order'!C32 -> 0 | D82: =+'Sales Order'!D32 -> 0 | E82: =+D82 -> 0 | G82: 0.5 | H82: 0
A83: Voice Jack Fee | F83: =+'Sales Order'!E63 -> 0 | G83: 0
A84: Auto-Attendant | C84: =+'Sales Order'!C33 -> 0 | D84: =+'Sales Order'!D33 -> 0 | E84: =+D84 -> 0 | F84: =+'Sales Order'!E63 -> 0 | G84: 0.5 | H84: =+G84*E84 -> 0
A85: EMTA Equipment | C85: =+'Sales Order'!C34 -> 0 | J85: =IF(H221>0,F221+G221,0) -> 280
A86: Total Hospitality Voice | E86: =SUM(E77:E84) -> 207.65 | F86: =SUM(F77:F84) -> 174 | H86: =SUM(H77:H84) -> 97.35 | I86: =SUM(I77:I84) -> 0 | J86: =SUM(J77:J85) -> 280
A88: Hospitality Internet | D88: Revenue | G88: Opex | J88: Capex
C89: Quantity | D89: Unit Price | E89: Total Monthly Revenue | F89: One Time Revenue | G89: Opex % | H89: Monthly Opex $ | I89: One-Time Opex $ | J89: One-Time (Equip + Labor)
A90: Starter | C90: =IF('Sales Order'!C41="",0,1) -> 0 | D90: =+'Sales Order'!D41 -> 0 | E90: =+'Sales Order'!D41 -> 0 | F90: 0 | G90: 0.2 | H90: =+G90*E90 -> 0 | I90: 0
A91: Deluxe | C91: =IF('Sales Order'!C42="",0,1) -> 1 | D91: =+'Sales Order'!D42 -> 99.95 | E91: =+'Sales Order'!D42 -> 99.95 | F91: 0 | G91: 0.2 | H91: =+G91*E91 -> 19.99 | I91: 0
A92: Deluxe 75 | C92: =IF('Sales Order'!C43="",0,1) -> 0 | D92: =+'Sales Order'!D43 -> 0 | E92: =+'Sales Order'!D43 -> 0 | F92: 0 | G92: =+G91 -> 0.2 | H92: 0
A93: Deluxe 100 | C93: =IF('Sales Order'!C44="",0,1) -> 0 | D93: =+'Sales Order'!D44 -> 0 | E93: =+'Sales Order'!D44 -> 0 | F93: 0 | G93: =+G92 -> 0.2 | H93: 0
A94: Deluxe 100+ | C94: =IF('Sales Order'!C45="",0,1) -> 0 | D94: =+'Sales Order'!D45 -> 0 | E94: =+'Sales Order'!D45 -> 0 | F94: 0 | G94: 0.2 | H94: 0
A95: Equipment Fee: D3 Gateway, Qty (1) | C95: =IF('Sales Order'!C46="",0,1) -> 0 | D95: =+'Sales Order'!D46 -> 0 | E95: =+'Sales Order'!D46 -> 0 | F95: 0 | G95: 0.2 | H95: 0
A96: Static IP - 1 | C96: =IF('Sales Order'!C48="",0,1) -> 1 | D96: =+'Sales Order'!D48 -> 14.95 | E96: =+'Sales Order'!D48 -> 14.95 | F96: 0 | G96: 0.2 | H96: 2.99
A97: Static IP - 5 | C97: =IF('Sales Order'!C49="",0,1) -> 0 | D97: =+'Sales Order'!D49 -> 0 | E97: =+'Sales Order'!D49 -> 0 | F97: 0 | G97: 0.2 | H97: 0
A98: Static IP - 13 | C98: =IF('Sales Order'!C50="",0,1) -> 0 | D98: =+'Sales Order'!D50 -> 0 | E98: =+'Sales Order'!D50 -> 0 | F98: 0 | G98: 0.2 | H98: 0
A99: Webhosting - Starter | C99: =IF('Sales Order'!C51="",0,1) -> 0 | D99: =+'Sales Order'!D51 -> 0 | E99: =+'Sales Order'!D51 -> 0 | F99: 0 | G99: 0.2 | H99: 0
A100: Webhosting - Business | C100: =IF('Sales Order'!C52="",0,1) -> 0 | D100: =+'Sales Order'!D52 -> 0 | E100: =+'Sales Order'!D52 -> 0 | F100: 0 | G100: 0.2 | H100: 0
A101: Webhosting - Commerce | C101: =IF('Sales Order'!C53="",0,1) -> 0 | D101: =+'Sales Order'!D53 -> 0 | E101: =+'Sales Order'!D53 -> 0 | F101: 0 | G101: 0.2 | H101: 0
A102: Webhosting - Professional | C102: =IF('Sales Order'!C54="",0,1) -> 0 | D102: =+'Sales Order'!D54 -> 0 | E102: =+'Sales Order'!D54 -> 0 | F102: 0 | G102: 0.2 | H102: 0
A103: SMC Router - Equipment | C103: =IF('Sales Order'!C55="",0,1) -> 0 | J103: =IF(H217>0,F217+G217,0) -> 294
A104: Total Hospitality Internet | E104: =SUM(E90:E102) -> 114.9 | F104: =SUM(F90:F102) -> 0 | H104: =SUM(H90:H102) -> 22.98 | I104: =SUM(I91:I102) -> 0 | J104: =SUM(J90:J103) -> 294
A106: Discounts | E106: =-'Sales Order'!J63 -> 0 | F106: 0
E108: Total Monthly Revenue | F108: One Time Revenue | G108: Opex % | H108: Monthly Opex $ | I108: One-Time Opex $ | J108: One-Time Capex $
A109: Total Hospitality Services | E109: =+E104+E86+E73+E106 -> 1202.55 | F109: =+F104+F86+F73+F106 -> 174 | G109: =IF(E109=0,"NA",+H109/E109) -> 0.4395492911 | H109: =+H104+H86+H73 -> 528.58 | I109: =+I104+I86+I73 -> 880 | J109: =+J104+J86+J73 -> 5074
A112: Capex Summary | E112: IRR Target | F112: Annual | G112: Monthly
A113: Coax Construction Capex | C113: =+Inputs!D7 -> 0 | F113: 0.3 | G113: =+F113/12 -> 0.025
A114: Hospitality Video Equipment & Labor | C114: =+J73 -> 4500
A115: Hospitality Voice Equipment & Labor | C115: =+J86 -> 280
A116: Hospitaltiy Internet Equipment & Labor | C116: =+J104 -> 294
A117: Total | C117: =SUM(C113:C116) -> 5074
A118: Adjustments
A119: Total - Adjusted | C119: =+C118+C117 -> 5074
A120: Brief explaination of adjustment
A122: For Metro-E Configurator Input Use
A123: Additional OSP/ISP Capex Input | D123: =+C226 -> 0
A124: Additional Hopsitality CPE Input | D124: =+C245-D123 -> 17834
C125: MRC | D125: NRC
A126: Hospitality Service Revenue | C126: =+E109 -> 1202.55 | D126: =+F109 -> 174
A127: Hospitality Service Opex | C127: =+H109 -> 528.58 | D127: =+I109 -> 880
C142: Month | D142: 0 | E142: 1 | F142: =+E142+1 -> 2 | G142: =+F142+1 -> 3 | H142: 4 | I142: 5 | J142: =+I142+1 -> 6 | K142: 7 | L142: 8 | M142: 9 | N142: 10 | O142: 11 | P142: 12 | Q142: 13 | R142: 14 | S142: 15 | T142: 16 | U142: 17 | V142: 18 | W142: 19 | X142: 20 | Y142: 21 | Z142: 22 | AA142: 23 | AB142: 24 | AC142: 25 | AD142: 26 | AE142: 27 | AF142: 28 | AG142: 29 | AH142: 30 | AI142: 31 | AJ142: 32 | AK142: 33 | AL142: 34 | AM142: 35 | AN142: 36 | AO142: 37 | AP142: 38 | AQ142: 39 | AR142: 40 | AS142: 41 | AT142: 42 | AU142: 43 | AV142: 44 | AW142: 45 | AX142: 46 | AY142: 47 | AZ142: 48 | BA142: 49 | BB142: 50 | BC142: 51 | BD142: 52 | BE142: 53 | BF142: 54 | BG142: 55 | BH142: 56 | BI142: 57 | BJ142: 58 | BK142: 59 | BL142: 60 | BN142: Year 1 | BO142: Year 2 | BP142: Year 3
C143: Date | E143: =#REF! ->  | F143: =E143+31 ->  | G143: =F143+31 ->  | J143: =I143+31 ->  | BN143: Year 1 | BO143: Year 2 | BP143: Year 3 | BQ143: Total 3 Yrs
C145: MRC | E145: =+E109 -> 1202.55 | F145: =+E145 -> 1202.55 | G145: =+F145 -> 1202.55 | H145: 1202.55 | I145: 1202.55 | J145: =+I145 -> 1202.55 | K145: 1202.55 | L145: 1202.55 | M145: 1202.55 | N145: 1202.55 | O145: 1202.55 | P145: 1202.55 | Q145: 1202.55 | R145: 1202.55 | S145: 1202.55 | T145: 1202.55 | U145: 1202.55 | V145: 1202.55 | W145: 1202.55 | X145: 1202.55 | Y145: 1202.55 | Z145: 1202.55 | AA145: 1202.55 | AB145: 1202.55 | AC145: 1202.55 | AD145: 1202.55 | AE145: 1202.55 | AF145: 1202.55 | AG145: 1202.55 | AH145: 1202.55 | AI145: 1202.55 | AJ145: 1202.55 | AK145: 1202.55 | AL145: 1202.55 | AM145: 1202.55 | AN145: 1202.55 | AO145: 1202.55 | AP145: 1202.55 | AQ145: 1202.55 | AR145: 1202.55 | AS145: 1202.55 | AT145: 1202.55 | AU145: 1202.55 | AV145: 1202.55 | AW145: 1202.55 | AX145: 1202.55 | AY145: 1202.55 | AZ145: 1202.55 | BA145: 1202.55 | BB145: 1202.55 | BC145: 1202.55 | BD145: 1202.55 | BE145: 1202.55 | BF145: 1202.55 | BG145: 1202.55 | BH145: 1202.55 | BI145: 1202.55 | BJ145: 1202.55 | BK145: 1202.55 | BL145: 1202.55 | BN145: =SUM(E145:P145) -> 14430.6 | BO145: =IF($B$9>1,$P145*12,0) -> 14430.6 | BP145: =IF($B$9>2,$P145*12,0) -> 14430.6 | BQ145: =SUM(BN145:BP145) -> 43291.8
C146: NRC | E146: =+F109 -> 174 | BN146: =SUM(E146:P146) -> 174 | BO146: =IF($B$9>1,$P146*12,0) -> 0 | BP146: =IF($B$9>2,$P146*12,0) -> 0 | BQ146: =SUM(BN146:BP146) -> 174
C147: Req Const Charge | D147: 1708.42019
C148: Total Revenue | D148: =+D147+D146+D145 -> 1708.42019 | E148: =SUM(E145:E146) -> 1376.55 | F148: =SUM(F145:F146) -> 1202.55 | G148: 1202.55 | H148: 1202.55 | I148: 1202.55 | J148: 1202.55 | K148: 1202.55 | L148: 1202.55 | M148: 1202.55 | N148: 1202.55 | O148: 1202.55 | P148: 1202.55 | Q148: 1202.55 | R148: 1202.55 | S148: 1202.55 | T148: 1202.55 | U148: 1202.55 | V148: 1202.55 | W148: 1202.55 | X148: 1202.55 | Y148: 1202.55 | Z148: 1202.55 | AA148: 1202.55 | AB148: 1202.55 | AC148: 1202.55 | AD148: 1202.55 | AE148: 1202.55 | AF148: 1202.55 | AG148: 1202.55 | AH148: 1202.55 | AI148: 1202.55 | AJ148: 1202.55 | AK148: 1202.55 | AL148: 1202.55 | AM148: 1202.55 | AN148: 1202.55 | AO148: 1202.55 | AP148: 1202.55 | AQ148: 1202.55 | AR148: 1202.55 | AS148: 1202.55 | AT148: 1202.55 | AU148: 1202.55 | AV148: 1202.55 | AW148: 1202.55 | AX148: 1202.55 | AY148: 1202.55 | AZ148: 1202.55 | BA148: 1202.55 | BB148: 1202.55 | BC148: 1202.55 | BD148: 1202.55 | BE148: 1202.55 | BF148: 1202.55 | BG148: 1202.55 | BH148: 1202.55 | BI148: 1202.55 | BJ148: 1202.55 | BK148: 1202.55 | BL148: 1202.55 | BN148: =SUM(BN145:BN146) -> 14604.6 | BO148: =SUM(BO145:BO146) -> 14430.6 | BP148: =SUM(BP145:BP146) -> 14430.6 | BQ148: =SUM(BQ145:BQ146) -> 43465.8
C151: Recurring Opex | E151: =+H109 -> 528.58 | F151: =+E151 -> 528.58 | G151: =+F151 -> 528.58 | H151: 528.58 | I151: 528.58 | J151: =+I151 -> 528.58 | K151: 528.58 | L151: 528.58 | M151: 528.58 | N151: 528.58 | O151: 528.58 | P151: 528.58 | Q151: 528.58 | R151: 528.58 | S151: 528.58 | T151: 528.58 | U151: 528.58 | V151: 528.58 | W151: 528.58 | X151: 528.58 | Y151: 528.58 | Z151: 528.58 | AA151: 528.58 | AB151: 528.58 | AC151: 528.58 | AD151: 528.58 | AE151: 528.58 | AF151: 528.58 | AG151: 528.58 | AH151: 528.58 | AI151: 528.58 | AJ151: 528.58 | AK151: 528.58 | AL151: 528.58 | AM151: 528.58 | AN151: 528.58 | AO151: 528.58 | AP151: 528.58 | AQ151: 528.58 | AR151: 528.58 | AS151: 528.58 | AT151: 528.58 | AU151: 528.58 | AV151: 528.58 | AW151: 528.58 | AX151: 528.58 | AY151: 528.58 | AZ151: 528.58 | BA151: 528.58 | BB151: 528.58 | BC151: 528.58 | BD151: 528.58 | BE151: 528.58 | BF151: 528.58 | BG151: 528.58 | BH151: 528.58 | BI151: 528.58 | BJ151: 528.58 | BK151: 528.58 | BL151: 528.58 | BN151: =SUM(E151:P151) -> 6342.96 | BO151: =IF($B$9>1,$P151*12,0) -> 6342.96 | BP151: =IF($B$9>2,$P151*12,0) -> 6342.96 | BQ151: =SUM(BN151:BP151) -> 19028.88
C152: Non-recurring Opex | E152: =+I109 -> 880 | F152: 0 | G152: 0 | H152: 0 | I152: 0 | J152: 0 | K152: 0 | L152: 0 | M152: 0 | N152: 0 | O152: 0 | P152: 0 | Q152: 0 | R152: 0 | S152: 0 | T152: 0 | U152: 0 | V152: 0 | W152: 0 | X152: 0 | Y152: 0 | Z152: 0 | AA152: 0 | AB152: 0 | AC152: 0 | AD152: 0 | AE152: 0 | AF152: 0 | AG152: 0 | AH152: 0 | AI152: 0 | AJ152: 0 | AK152: 0 | AL152: 0 | AM152: 0 | AN152: 0 | AO152: 0 | AP152: 0 | AQ152: 0 | AR152: 0 | AS152: 0 | AT152: 0 | AU152: 0 | AV152: 0 | AW152: 0 | AX152: 0 | AY152: 0 | AZ152: 0 | BA152: 0 | BB152: 0 | BC152: 0 | BD152: 0 | BE152: 0 | BF152: 0 | BG152: 0 | BH152: 0 | BI152: 0 | BJ152: 0 | BK152: 0 | BL152: 0 | BN152: =SUM(E152:P152) -> 880 | BO152: =IF($B$9>1,$P152*12,0) -> 0 | BP152: =IF($B$9>2,$P152*12,0) -> 0 | BQ152: =SUM(BN152:BP152) -> 880
C153: Total Opex | D153: =SUM(D151:D152) -> 0 | E153: =SUM(E151:E152) -> 1408.58 | F153: =SUM(F151:F152) -> 528.58 | G153: 528.58 | H153: 528.58 | I153: 528.58 | J153: 528.58 | K153: 528.58 | L153: 528.58 | M153: 528.58 | N153: 528.58 | O153: 528.58 | P153: 528.58 | Q153: 528.58 | R153: 528.58 | S153: 528.58 | T153: 528.58 | U153: 528.58 | V153: 528.58 | W153: 528.58 | X153: 528.58 | Y153: 528.58 | Z153: 528.58 | AA153: 528.58 | AB153: 528.58 | AC153: 528.58 | AD153: 528.58 | AE153: 528.58 | AF153: 528.58 | AG153: 528.58 | AH153: 528.58 | AI153: 528.58 | AJ153: 528.58 | AK153: 528.58 | AL153: 528.58 | AM153: 528.58 | AN153: 528.58 | AO153: 528.58 | AP153: 528.58 | AQ153: 528.58 | AR153: 528.58 | AS153: 528.58 | AT153: 528.58 | AU153: 528.58 | AV153: 528.58 | AW153: 528.58 | AX153: 528.58 | AY153: 528.58 | AZ153: 528.58 | BA153: 528.58 | BB153: 528.58 | BC153: 528.58 | BD153: 528.58 | BE153: 528.58 | BF153: 528.58 | BG153: 528.58 | BH153: 528.58 | BI153: 528.58 | BJ153: 528.58 | BK153: 528.58 | BL153: 528.58 | BN153: =SUM(BN151:BN152) -> 7222.96 | BO153: =SUM(BO151:BO152) -> 6342.96 | BP153: =SUM(BP151:BP152) -> 6342.96 | BQ153: =SUM(BQ151:BQ152) -> 19908.88
C156: OCF | D156: =+D148 -> 1708.42019 | E156: =E148-E153 -> -32.03 | F156: =F148-F153 -> 673.97 | G156: 673.97 | H156: 673.97 | I156: 673.97 | J156: 673.97 | K156: 673.97 | L156: 673.97 | M156: 673.97 | N156: 673.97 | O156: 673.97 | P156: 673.97 | Q156: 673.97 | R156: 673.97 | S156: 673.97 | T156: 673.97 | U156: 673.97 | V156: 673.97 | W156: 673.97 | X156: 673.97 | Y156: 673.97 | Z156: 673.97 | AA156: 673.97 | AB156: 673.97 | AC156: 673.97 | AD156: 673.97 | AE156: 673.97 | AF156: 673.97 | AG156: 673.97 | AH156: 673.97 | AI156: 673.97 | AJ156: 673.97 | AK156: 673.97 | AL156: 673.97 | AM156: 673.97 | AN156: 673.97 | AO156: 673.97 | AP156: 673.97 | AQ156: 673.97 | AR156: 673.97 | AS156: 673.97 | AT156: 673.97 | AU156: 673.97 | AV156: 673.97 | AW156: 673.97 | AX156: 673.97 | AY156: 673.97 | AZ156: 673.97 | BA156: 673.97 | BB156: 673.97 | BC156: 673.97 | BD156: 673.97 | BE156: 673.97 | BF156: 673.97 | BG156: 673.97 | BH156: 673.97 | BI156: 673.97 | BJ156: 673.97 | BK156: 673.97 | BL156: 673.97 | BN156: =SUM(E156:P156) -> 7381.64 | BO156: =BO148-BO153 -> 8087.64 | BP156: =BP148-BP153 -> 8087.64 | BQ156: =BQ148-BQ153 -> 23556.92
C157: OCF Margin | E157: =+E156/E148 -> -0.02326831572 | F157: =+F156/F148 -> 0.5604507089 | G157: 0.5604507089 | H157: 0.5604507089 | I157: 0.5604507089 | J157: 0.5604507089 | K157: 0.5604507089 | L157: 0.5604507089 | M157: 0.5604507089 | N157: 0.5604507089 | O157: 0.5604507089 | P157: 0.5604507089 | Q157: 0.5604507089 | R157: 0.5604507089 | S157: 0.5604507089 | T157: 0.5604507089 | U157: 0.5604507089 | V157: 0.5604507089 | W157: 0.5604507089 | X157: 0.5604507089 | Y157: 0.5604507089 | Z157: 0.5604507089 | AA157: 0.5604507089 | AB157: 0.5604507089 | AC157: 0.5604507089 | AD157: 0.5604507089 | AE157: 0.5604507089 | AF157: 0.5604507089 | AG157: 0.5604507089 | AH157: 0.5604507089 | AI157: 0.5604507089 | AJ157: 0.5604507089 | AK157: 0.5604507089 | AL157: 0.5604507089 | AM157: 0.5604507089 | AN157: 0.5604507089 | AO157: 0.5604507089 | AP157: 0.5604507089 | AQ157: 0.5604507089 | AR157: 0.5604507089 | AS157: 0.5604507089 | AT157: 0.5604507089 | AU157: 0.5604507089 | AV157: 0.5604507089 | AW157: 0.5604507089 | AX157: 0.5604507089 | AY157: 0.5604507089 | AZ157: 0.5604507089 | BA157: 0.5604507089 | BB157: 0.5604507089 | BC157: 0.5604507089 | BD157: 0.5604507089 | BE157: 0.5604507089 | BF157: 0.5604507089 | BG157: 0.5604507089 | BH157: 0.5604507089 | BI157: 0.5604507089 | BJ157: 0.5604507089 | BK157: 0.5604507089 | BL157: 0.5604507089
C159: Capex | D159: =+C119 -> 5074 | F159: 0 | G159: 0 | H159: 0 | I159: 0 | J159: 0 | K159: 0 | L159: 0 | M159: 0 | N159: 0 | O159: 0 | P159: 0 | Q159: 0 | R159: 0 | S159: 0 | T159: 0 | U159: 0 | V159: 0 | W159: 0 | X159: 0 | Y159: 0 | Z159: 0 | AA159: 0 | AB159: 0 | AC159: 0 | AD159: 0 | AE159: 0 | AF159: 0 | AG159: 0 | AH159: 0 | AI159: 0 | AJ159: 0 | AK159: 0 | AL159: 0 | AM159: 0 | AN159: 0 | AO159: 0 | AP159: 0 | AQ159: 0 | AR159: 0 | AS159: 0 | AT159: 0 | AU159: 0 | AV159: 0 | AW159: 0 | AX159: 0 | AY159: 0 | AZ159: 0 | BA159: 0 | BB159: 0 | BC159: 0 | BD159: 0 | BE159: 0 | BF159: 0 | BG159: 0 | BH159: 0 | BI159: 0 | BJ159: 0 | BK159: 0 | BL159: 0 | BN159: =SUM(D159:P159) -> 5074 | BO159: =IF($B$9>1,$P159*12,0) -> 0 | BP159: =IF($B$9>2,$P159*12,0) -> 0 | BQ159: =SUM(BN159:BP159) -> 5074
C161: FCF | D161: =+D156-D159 -> -3365.57981 | E161: =+E156-E159 -> -32.03 | F161: =+F156-F159 -> 673.97 | G161: =+G156-G159 -> 673.97 | H161: 673.97 | I161: 673.97 | J161: 673.97 | K161: 673.97 | L161: 673.97 | M161: 673.97 | N161: 673.97 | O161: 673.97 | P161: 673.97 | Q161: 673.97 | R161: 673.97 | S161: 673.97 | T161: 673.97 | U161: 673.97 | V161: 673.97 | W161: 673.97 | X161: 673.97 | Y161: 673.97 | Z161: 673.97 | AA161: 673.97 | AB161: 673.97 | AC161: 673.97 | AD161: 673.97 | AE161: 673.97 | AF161: 673.97 | AG161: 673.97 | AH161: 673.97 | AI161: 673.97 | AJ161: 673.97 | AK161: 673.97 | AL161: 673.97 | AM161: 673.97 | AN161: 673.97 | AO161: 673.97 | AP161: 673.97 | AQ161: 673.97 | AR161: 673.97 | AS161: 673.97 | AT161: 673.97 | AU161: 673.97 | AV161: 673.97 | AW161: 673.97 | AX161: 673.97 | AY161: 673.97 | AZ161: 673.97 | BA161: 673.97 | BB161: 673.97 | BC161: 673.97 | BD161: 673.97 | BE161: 673.97 | BF161: 673.97 | BG161: 673.97 | BH161: 673.97 | BI161: 673.97 | BJ161: 673.97 | BK161: 673.97 | BL161: 673.97
C162: Cumulative FCF | D162: =+D161 -> -3365.57981 | E162: =+E161+D162 -> -3397.60981 | F162: =+E162+F161 -> -2723.63981 | G162: =+F162+G161 -> -2049.66981 | H162: -1375.69981 | I162: -701.7298095 | J162: =+I162+J161 -> -27.75980952 | K162: 646.2101905 | L162: 1320.18019 | M162: 1994.15019 | N162: 2668.12019 | O162: 3342.09019 | P162: 4016.06019 | Q162: 4690.03019 | R162: 5364.00019 | S162: 6037.97019 | T162: 6711.94019 | U162: 7385.91019 | V162: 8059.88019 | W162: 8733.85019 | X162: 9407.82019 | Y162: 10081.79019 | Z162: 10755.76019 | AA162: 11429.73019 | AB162: 12103.70019 | AC162: 12777.67019 | AD162: 13451.64019 | AE162: 14125.61019 | AF162: 14799.58019 | AG162: 15473.55019 | AH162: 16147.52019 | AI162: 16821.49019 | AJ162: 17495.46019 | AK162: 18169.43019 | AL162: 18843.40019 | AM162: 19517.37019 | AN162: 20191.34019 | AO162: 20865.31019 | AP162: 21539.28019 | AQ162: 22213.25019 | AR162: 22887.22019 | AS162: 23561.19019 | AT162: 24235.16019 | AU162: 24909.13019 | AV162: 25583.10019 | AW162: 26257.07019 | AX162: 26931.04019 | AY162: 27605.01019 | AZ162: 28278.98019 | BA162: 28952.95019 | BB162: 29626.92019 | BC162: 30300.89019 | BD162: 30974.86019 | BE162: 31648.83019 | BF162: 32322.80019 | BG162: 32996.77019 | BH162: 33670.74019 | BI162: 34344.71019 | BJ162: 35018.68019 | BK162: 35692.65019 | BL162: 36366.62019
C163: IRR | D163: =IF(D162<0,"NA",IRR(D$162:$E162,0.05)*12) -> NA | E163: =IF(E162<0,"NA",IRR($D$161:E161,0.05)*12) -> NA | F163: =IF(F162<0,"NA",IRR($D$161:F161,0.05)*12) -> NA | G163: =IF(G162<0,"NA",IRR($D$161:G161,0.05)*12) -> NA | H163: =IF(H162<0,"NA",IRR($D$161:H161,0.05)*12) -> NA | I163: =IF(I162<0,"NA",IRR($D$161:I161,0.05)*12) -> NA | J163: =IF(J162<0,"NA",IRR($D$161:J161,0.05)*12) -> NA | K163: =IF(K162<0,"NA",IRR($D$161:K161,0.05)*12) -> 0.4806538298 | L163: =IF(L162<0,"NA",IRR($D$161:L161,0.05)*12) -> 0.8392656526 | M163: =IF(M162<0,"NA",IRR($D$161:M161,0.05)*12) -> 1.100831682 | N163: =IF(N162<0,"NA",IRR($D$161:N161,0.05)*12) -> 1.29593346 | O163: =IF(O162<0,"NA",IRR($D$161:O161,0.05)*12) -> 1.444183392 | P163: =IF(P162<0,"NA",IRR($D$161:P161,0.05)*12) -> 1.558594337 | Q163: =IF(Q162<0,"NA",IRR($D$161:Q161,0.05)*12) -> 1.648055295 | R163: =IF(R162<0,"NA",IRR($D$161:R161,0.05)*12) -> 1.718792379 | S163: =IF(S162<0,"NA",IRR($D$161:S161,0.05)*12) -> 1.775262358 | T163: =IF(T162<0,"NA",IRR($D$161:T161,0.05)*12) -> 1.820716568 | U163: =IF(U162<0,"NA",IRR($D$161:U161,0.05)*12) -> 1.857566795 | V163: =IF(V162<0,"NA",IRR($D$161:V161,0.05)*12) -> 1.88762856 | W163: =IF(W162<0,"NA",IRR($D$161:W161,0.05)*12) -> 1.912286479 | X163: =IF(X162<0,"NA",IRR($D$161:X161,0.05)*12) -> 1.932608866 | Y163: =IF(Y162<0,"NA",IRR($D$161:Y161,0.05)*12) -> 1.94942859 | Z163: =IF(Z162<0,"NA",IRR($D$161:Z161,0.05)*12) -> 1.963401023 | AA163: =IF(AA162<0,"NA",IRR($D$161:AA161,0.05)*12) -> 1.975046196 | AB163: =IF(AB162<0,"NA",IRR($D$161:AB161,0.05)*12) -> 1.984779852 | AC163: =IF(AC162<0,"NA",IRR($D$161:AC161,0.05)*12) -> 1.992936623 | AD163: =IF(AD162<0,"NA",IRR($D$161:AD161,0.05)*12) -> 1.999787497 | AE163: =IF(AE162<0,"NA",IRR($D$161:AE161,0.05)*12) -> 2.00555314 | AF163: =IF(AF162<0,"NA",IRR($D$161:AF161,0.05)*12) -> 2.010414132 | AG163: =IF(AG162<0,"NA",IRR($D$161:AG161,0.05)*12) -> 2.014518916 | AH163: =IF(AH162<0,"NA",IRR($D$161:AH161,0.05)*12) -> 2.017990011 | AI163: =IF(AI162<0,"NA",IRR($D$161:AI161,0.05)*12) -> 2.020928915 | AJ163: =IF(AJ162<0,"NA",IRR($D$161:AJ161,0.05)*12) -> 2.023419983 | AK163: =IF(AK162<0,"NA",IRR($D$161:AK161,0.05)*12) -> 2.025533536 | AL163: =IF(AL162<0,"NA",IRR($D$161:AL161,0.05)*12) -> 2.027328352 | AM163: =IF(AM162<0,"NA",IRR($D$161:AM161,0.05)*12) -> 2.02885368 | AN163: =IF(AN162<0,"NA",IRR($D$161:AN161,0.05)*12) -> 2.030150873 | AO163: =IF(AO162<0,"NA",IRR($D$161:AO161,0.05)*12) -> 2.031254724 | AP163: =IF(AP162<0,"NA",IRR($D$161:AP161,0.05)*12) -> 2.032194556 | AQ163: =IF(AQ162<0,"NA",IRR($D$161:AQ161,0.05)*12) -> 2.032995124 | AR163: =IF(AR162<0,"NA",IRR($D$161:AR161,0.05)*12) -> 2.033677351 | AS163: =IF(AS162<0,"NA",IRR($D$161:AS161,0.05)*12) -> 2.034258948 | AT163: =IF(AT162<0,"NA",IRR($D$161:AT161,0.05)*12) -> 2.034754922 | AU163: =IF(AU162<0,"NA",IRR($D$161:AU161,0.05)*12) -> 2.035178002 | AV163: =IF(AV162<0,"NA",IRR($D$161:AV161,0.05)*12) -> 2.035538995 | AW163: =IF(AW162<0,"NA",IRR($D$161:AW161,0.05)*12) -> 2.035847081 | AX163: =IF(AX162<0,"NA",IRR($D$161:AX161,0.05)*12) -> 2.036110067 | AY163: =IF(AY162<0,"NA",IRR($D$161:AY161,0.05)*12) -> 2.036334595 | AZ163: =IF(AZ162<0,"NA",IRR($D$161:AZ161,0.05)*12) -> 2.036526319 | BA163: =IF(BA162<0,"NA",IRR($D$161:BA161,0.05)*12) -> 2.036690054 | BB163: =IF(BB162<0,"NA",IRR($D$161:BB161,0.05)*12) -> 2.036829903 | BC163: =IF(BC162<0,"NA",IRR($D$161:BC161,0.05)*12) -> 2.036949362 | BD163: =IF(BD162<0,"NA",IRR($D$161:BD161,0.05)*12) -> 2.037051415 | BE163: =IF(BE162<0,"NA",IRR($D$161:BE161,0.05)*12) -> 2.037138605 | BF163: =IF(BF162<0,"NA",IRR($D$161:BF161,0.05)*12) -> 2.037213101 | BG163: =IF(BG162<0,"NA",IRR($D$161:BG161,0.05)*12) -> 2.037276756 | BH163: =IF(BH162<0,"NA",IRR($D$161:BH161,0.05)*12) -> 2.03733115 | BI163: =IF(BI162<0,"NA",IRR($D$161:BI161,0.05)*12) -> 2.037377633 | BJ163: =IF(BJ162<0,"NA",IRR($D$161:BJ161,0.05)*12) -> 2.037417357 | BK163: =IF(BK162<0,"NA",IRR($D$161:BK161,0.05)*12) -> 2.037451307 | BL163: =IF(BL162<0,"NA",IRR($D$161:BL161,0.05)*12) -> 2.037480322
C164: NPV | D164: =NPV($G$113,D161) -> -3283.492497 | E164: =NPV($G$113,$D$161:E161) -> -3313.979112 | F164: =NPV($G$113,$D$161:F161) -> -2688.130967 | G164: =NPV($G$113,$D$161:G161) -> -2077.547411 | H164: =NPV($G$113,$D$161:H161) -> -1481.856137 | I164: =NPV($G$113,$D$161:I161) -> -900.6939182 | J164: =NPV($G$113,$D$161:J161) -> -333.7063877 | K164: =NPV($G$113,$D$161:K161) -> 219.4521786 | L164: =NPV($G$113,$D$161:L161) -> 759.1190726 | M164: =NPV($G$113,$D$161:M161) -> 1285.623359 | N164: =NPV($G$113,$D$161:N161) -> 1799.286078 | O164: =NPV($G$113,$D$161:O161) -> 2300.420438 | P164: =NPV($G$113,$D$161:P161) -> 2789.332009 | Q164: =NPV($G$113,$D$161:Q161) -> 3266.318907 | R164: =NPV($G$113,$D$161:R161) -> 3731.671978 | S164: =NPV($G$113,$D$161:S161) -> 4185.674975 | T164: =NPV($G$113,$D$161:T161) -> 4628.604727 | U164: =NPV($G$113,$D$161:U161) -> 5060.731315 | V164: =NPV($G$113,$D$161:V161) -> 5482.31823 | W164: =NPV($G$113,$D$161:W161) -> 5893.622538 | X164: =NPV($G$113,$D$161:X161) -> 6294.895033 | Y164: =NPV($G$113,$D$161:Y161) -> 6686.380393 | Z164: =NPV($G$113,$D$161:Z161) -> 7068.317331 | AA164: =NPV($G$113,$D$161:AA161) -> 7440.938733 | AB164: =NPV($G$113,$D$161:AB161) -> 7804.471809 | AC164: =NPV($G$113,$D$161:AC161) -> 8159.138224 | AD164: =NPV($G$113,$D$161:AD161) -> 8505.154239 | AE164: =NPV($G$113,$D$161:AE161) -> 8842.730839 | AF164: =NPV($G$113,$D$161:AF161) -> 9172.073863 | AG164: =NPV($G$113,$D$161:AG161) -> 9493.384131 | AH164: =NPV($G$113,$D$161:AH161) -> 9806.857562 | AI164: =NPV($G$113,$D$161:AI161) -> 10112.6853 | AJ164: =NPV($G$113,$D$161:AJ161) -> 10411.05383 | AK164: =NPV($G$113,$D$161:AK161) -> 10702.14507 | AL164: =NPV($G$113,$D$161:AL161) -> 10986.13653 | AM164: =NPV($G$113,$D$161:AM161) -> 11263.20136 | AN164: =NPV($G$113,$D$161:AN161) -> 11533.50852 | AO164: =NPV($G$113,$D$161:AO161) -> 11797.22282 | AP164: =NPV($G$113,$D$161:AP161) -> 12054.50507 | AQ164: =NPV($G$113,$D$161:AQ161) -> 12305.51213 | AR164: =NPV($G$113,$D$161:AR161) -> 12550.39708 | AS164: =NPV($G$113,$D$161:AS161) -> 12789.30922 | AT164: =NPV($G$113,$D$161:AT161) -> 13022.39423 | AU164: =NPV($G$113,$D$161:AU161) -> 13249.79425 | AV164: =NPV($G$113,$D$161:AV161) -> 13471.64792 | AW164: =NPV($G$113,$D$161:AW161) -> 13688.09053 | AX164: =NPV($G$113,$D$161:AX161) -> 13899.25405 | AY164: =NPV($G$113,$D$161:AY161) -> 14105.26724 | AZ164: =NPV($G$113,$D$161:AZ161) -> 14306.25572 | BA164: =NPV($G$113,$D$161:BA161) -> 14502.34204 | BB164: =NPV($G$113,$D$161:BB161) -> 14693.64576 | BC164: =NPV($G$113,$D$161:BC161) -> 14880.28354 | BD164: =NPV($G$113,$D$161:BD161) -> 15062.36919 | BE164: =NPV($G$113,$D$161:BE161) -> 15240.01371 | BF164: =NPV($G$113,$D$161:BF161) -> 15413.32545 | BG164: =NPV($G$113,$D$161:BG161) -> 15582.41007 | BH164: =NPV($G$113,$D$161:BH161) -> 15747.37067 | BI164: =NPV($G$113,$D$161:BI161) -> 15908.30785 | BJ164: =NPV($G$113,$D$161:BJ161) -> 16065.31972 | BK164: =NPV($G$113,$D$161:BK161) -> 16218.50204 | BL164: =NPV($G$113,$D$161:BL161) -> 16367.94821
C165: Breakeven Counter | D165: =IF(D162>0,1,0) -> 0 | E165: =IF(E162>0,1,0) -> 0 | F165: =IF(F162>0,1,0) -> 0 | G165: =IF(G162>0,1,0) -> 0 | H165: 0 | I165: 0 | J165: 0 | K165: 1 | L165: 1 | M165: 1 | N165: 1 | O165: 1 | P165: 1 | Q165: 1 | R165: 1 | S165: 1 | T165: 1 | U165: 1 | V165: 1 | W165: 1 | X165: 1 | Y165: 1 | Z165: 1 | AA165: 1 | AB165: 1 | AC165: 1 | AD165: 1 | AE165: 1 | AF165: 1 | AG165: 1 | AH165: 1 | AI165: 1 | AJ165: 1 | AK165: 1 | AL165: 1 | AM165: 1 | AN165: 1 | AO165: 1 | AP165: 1 | AQ165: 1 | AR165: 1 | AS165: 1 | AT165: 1 | AU165: 1 | AV165: 1 | AW165: 1 | AX165: 1 | AY165: 1 | AZ165: 1 | BA165: 1 | BB165: 1 | BC165: 1 | BD165: 1 | BE165: 1 | BF165: 1 | BG165: 1 | BH165: 1 | BI165: 1 | BJ165: 1 | BK165: 1 | BL165: 1
C166: Breakeven Month | D166: =+D165*D142-SUM(B$165:$E165) -> 0 | E166: =+E165*E142-SUM(C$165:$E165) -> 0 | F166: =+F165*F142-SUM($E$165:E165) -> 0 | G166: =+G165*G142-SUM($E$165:F165) -> 0 | H166: =+H165*H142-SUM($E$165:G165) -> 0 | I166: =+I165*I142-SUM($E$165:H165) -> 0 | J166: =+J165*J142-SUM($E$165:I165) -> 0 | K166: =+K165*K142-SUM($E$165:J165) -> 7 | L166: =+L165*L142-SUM($E$165:K165) -> 7 | M166: =+M165*M142-SUM($E$165:L165) -> 7 | N166: =+N165*N142-SUM($E$165:M165) -> 7 | O166: =+O165*O142-SUM($E$165:N165) -> 7 | P166: =+P165*P142-SUM($E$165:O165) -> 7 | Q166: =+Q165*Q142-SUM($E$165:P165) -> 7 | R166: =+R165*R142-SUM($E$165:Q165) -> 7 | S166: =+S165*S142-SUM($E$165:R165) -> 7 | T166: =+T165*T142-SUM($E$165:S165) -> 7 | U166: =+U165*U142-SUM($E$165:T165) -> 7 | V166: =+V165*V142-SUM($E$165:U165) -> 7 | W166: =+W165*W142-SUM($E$165:V165) -> 7 | X166: =+X165*X142-SUM($E$165:W165) -> 7 | Y166: =+Y165*Y142-SUM($E$165:X165) -> 7 | Z166: =+Z165*Z142-SUM($E$165:Y165) -> 7 | AA166: =+AA165*AA142-SUM($E$165:Z165) -> 7 | AB166: =+AB165*AB142-SUM($E$165:AA165) -> 7 | AC166: =+AC165*AC142-SUM($E$165:AB165) -> 7 | AD166: =+AD165*AD142-SUM($E$165:AC165) -> 7 | AE166: =+AE165*AE142-SUM($E$165:AD165) -> 7 | AF166: =+AF165*AF142-SUM($E$165:AE165) -> 7 | AG166: =+AG165*AG142-SUM($E$165:AF165) -> 7 | AH166: =+AH165*AH142-SUM($E$165:AG165) -> 7 | AI166: =+AI165*AI142-SUM($E$165:AH165) -> 7 | AJ166: =+AJ165*AJ142-SUM($E$165:AI165) -> 7 | AK166: =+AK165*AK142-SUM($E$165:AJ165) -> 7 | AL166: =+AL165*AL142-SUM($E$165:AK165) -> 7 | AM166: =+AM165*AM142-SUM($E$165:AL165) -> 7 | AN166: =+AN165*AN142-SUM($E$165:AM165) -> 7 | AO166: =+AO165*AO142-SUM($E$165:AN165) -> 7 | AP166: =+AP165*AP142-SUM($E$165:AO165) -> 7 | AQ166: =+AQ165*AQ142-SUM($E$165:AP165) -> 7 | AR166: =+AR165*AR142-SUM($E$165:AQ165) -> 7 | AS166: =+AS165*AS142-SUM($E$165:AR165) -> 7 | AT166: =+AT165*AT142-SUM($E$165:AS165) -> 7 | AU166: =+AU165*AU142-SUM($E$165:AT165) -> 7 | AV166: =+AV165*AV142-SUM($E$165:AU165) -> 7 | AW166: =+AW165*AW142-SUM($E$165:AV165) -> 7 | AX166: =+AX165*AX142-SUM($E$165:AW165) -> 7 | AY166: =+AY165*AY142-SUM($E$165:AX165) -> 7 | AZ166: =+AZ165*AZ142-SUM($E$165:AY165) -> 7 | BA166: =+BA165*BA142-SUM($E$165:AZ165) -> 7 | BB166: =+BB165*BB142-SUM($E$165:BA165) -> 7 | BC166: =+BC165*BC142-SUM($E$165:BB165) -> 7 | BD166: =+BD165*BD142-SUM($E$165:BC165) -> 7 | BE166: =+BE165*BE142-SUM($E$165:BD165) -> 7 | BF166: =+BF165*BF142-SUM($E$165:BE165) -> 7 | BG166: =+BG165*BG142-SUM($E$165:BF165) -> 7 | BH166: =+BH165*BH142-SUM($E$165:BG165) -> 7 | BI166: =+BI165*BI142-SUM($E$165:BH165) -> 7 | BJ166: =+BJ165*BJ142-SUM($E$165:BI165) -> 7 | BK166: =+BK165*BK142-SUM($E$165:BJ165) -> 7 | BL166: =+BL165*BL142-SUM($E$165:BK165) -> 7
C167: NPV | D167: =IF(B9=12,P164,IF(B9=24,AB164,IF(B9=36,AN164,IF(B9=48,AZ164,IF(B9=60,BL164))))) -> 11533.50852
A171: Other Revenue Drivers
C172: Revenue | D172: Opex % | E172: O;pex $ | F172: Capex / Site | G172: Total Capex
A173: Metro-E Revenue (MRC) | C173: =+F16 -> 0 | D173: 0.2 | E173: =+D173*C173 -> 0 | F173: 3402 | G173: =+F173*I16 -> 0
A174: PRI Revenue (MRC) | C174: 0 | D174: 0.5 | E174: =+D174*C174 -> 0 | F174: 1030 | G174: =+F174*I17 -> 0
A175: BVE Revenue (MRC) | C175: =+F18 -> 0 | D175: 0.5 | E175: =+D175*C175 -> 0 | F175: 4200 | G175: =+F175*I18 -> 0
A176: NRC / Construction Charge | C176: =+F19 -> 0 | D176: 1 | E176: =+D176*C176 -> 0 | F176: =+F15 -> 0 | G176: =+F176 -> 0
A177: One Time Opex / Commissions | E177: =+C173+C174+C175 -> 0
A178: Total | C178: =SUM(C173:C177) -> 0 | G178: =SUM(G173:G177) -> 0
C180: Month | D180: 0 | E180: 1 | F180: =+E180+1 -> 2 | G180: =+F180+1 -> 3 | H180: =+G180+1 -> 4 | I180: =+H180+1 -> 5 | J180: =+I180+1 -> 6 | K180: =+J180+1 -> 7 | L180: =+K180+1 -> 8 | M180: =+L180+1 -> 9 | N180: =+M180+1 -> 10 | O180: =+N180+1 -> 11 | P180: =+O180+1 -> 12 | Q180: =+P180+1 -> 13 | R180: =+Q180+1 -> 14 | S180: =+R180+1 -> 15 | T180: =+S180+1 -> 16 | U180: =+T180+1 -> 17 | V180: =+U180+1 -> 18 | W180: =+V180+1 -> 19 | X180: =+W180+1 -> 20 | Y180: =+X180+1 -> 21 | Z180: =+Y180+1 -> 22 | AA180: =+Z180+1 -> 23 | AB180: =+AA180+1 -> 24 | AC180: =+AB180+1 -> 25 | AD180: =+AC180+1 -> 26 | AE180: =+AD180+1 -> 27 | AF180: =+AE180+1 -> 28 | AG180: =+AF180+1 -> 29 | AH180: =+AG180+1 -> 30 | AI180: =+AH180+1 -> 31 | AJ180: =+AI180+1 -> 32 | AK180: =+AJ180+1 -> 33 | AL180: =+AK180+1 -> 34 | AM180: =+AL180+1 -> 35 | AN180: =+AM180+1 -> 36 | AO180: =+AN180+1 -> 37 | AP180: =+AO180+1 -> 38 | AQ180: =+AP180+1 -> 39 | AR180: =+AQ180+1 -> 40 | AS180: =+AR180+1 -> 41 | AT180: =+AS180+1 -> 42 | AU180: =+AT180+1 -> 43 | AV180: =+AU180+1 -> 44 | AW180: =+AV180+1 -> 45 | AX180: =+AW180+1 -> 46 | AY180: =+AX180+1 -> 47 | AZ180: =+AY180+1 -> 48 | BA180: =+AZ180+1 -> 49 | BB180: =+BA180+1 -> 50 | BC180: =+BB180+1 -> 51 | BD180: =+BC180+1 -> 52 | BE180: =+BD180+1 -> 53 | BF180: =+BE180+1 -> 54 | BG180: =+BF180+1 -> 55 | BH180: =+BG180+1 -> 56 | BI180: =+BH180+1 -> 57 | BJ180: =+BI180+1 -> 58 | BK180: =+BJ180+1 -> 59 | BL180: =+BK180+1 -> 60
C181: Date | E181: =#REF! ->  | F181: =E181+31 ->  | G181: =F181+31 ->  | H181: =G181+31 ->  | I181: =H181+31 ->  | J181: =I181+31 ->  | K181: =J181+31 ->  | L181: =K181+31 ->  | M181: =L181+31 ->  | N181: =M181+31 ->  | O181: =N181+31 ->  | P181: =O181+31 ->  | Q181: =P181+31 ->  | R181: =Q181+31 ->  | S181: =R181+31 ->  | T181: =S181+31 ->  | U181: =T181+31 ->  | V181: =U181+31 ->  | W181: =V181+31 ->  | X181: =W181+31 ->  | Y181: =X181+31 ->  | Z181: =Y181+31 ->  | AA181: =Z181+31 ->  | AB181: =AA181+31 ->  | AC181: =AB181+31 ->  | AD181: =AC181+31 ->  | AE181: =AD181+31 ->  | AF181: =AE181+31 ->  | AG181: =AF181+31 ->  | AH181: =AG181+31 ->  | AI181: =AH181+31 ->  | AJ181: =AI181+31 ->  | AK181: =AJ181+31 ->  | AL181: =AK181+31 ->  | AM181: =AL181+31 ->  | AN181: =AM181+31 ->  | AO181: =AN181+31 ->  | AP181: =AO181+31 ->  | AQ181: =AP181+31 ->  | AR181: =AQ181+31 ->  | AS181: =AR181+31 ->  | AT181: =AS181+31 ->  | AU181: =AT181+31 ->  | AV181: =AU181+31 ->  | AW181: =AV181+31 ->  | AX181: =AW181+31 ->  | AY181: =AX181+31 ->  | AZ181: =AY181+31 ->  | BA181: =AZ181+31 ->  | BB181: =BA181+31 ->  | BC181: =BB181+31 ->  | BD181: =BC181+31 ->  | BE181: =BD181+31 ->  | BF181: =BE181+31 ->  | BG181: =BF181+31 ->  | BH181: =BG181+31 ->  | BI181: =BH181+31 ->  | BJ181: =BI181+31 ->  | BK181: =BJ181+31 ->  | BL181: =BK181+31 ->  | BN181: Year 1 | BO181: Year 2 | BP181: Year 3 | BQ181: Total 3 Yrs
C183: MRC | E183: =+E145+$C$173+$C$174+$C$175 -> 1202.55 | F183: =+F145+$C$173+$C$174+$C$175 -> 1202.55 | G183: =+G145+$C$173+$C$174+$C$175 -> 1202.55 | H183: 1202.55 | I183: 1202.55 | J183: 1202.55 | K183: 1202.55 | L183: 1202.55 | M183: 1202.55 | N183: 1202.55 | O183: 1202.55 | P183: 1202.55 | Q183: 1202.55 | R183: 1202.55 | S183: 1202.55 | T183: 1202.55 | U183: 1202.55 | V183: 1202.55 | W183: 1202.55 | X183: 1202.55 | Y183: 1202.55 | Z183: 1202.55 | AA183: 1202.55 | AB183: 1202.55 | AC183: 1202.55 | AD183: 1202.55 | AE183: 1202.55 | AF183: 1202.55 | AG183: 1202.55 | AH183: 1202.55 | AI183: 1202.55 | AJ183: 1202.55 | AK183: 1202.55 | AL183: 1202.55 | AM183: 1202.55 | AN183: 1202.55 | AO183: 1202.55 | AP183: 1202.55 | AQ183: 1202.55 | AR183: 1202.55 | AS183: 1202.55 | AT183: 1202.55 | AU183: 1202.55 | AV183: 1202.55 | AW183: 1202.55 | AX183: 1202.55 | AY183: 1202.55 | AZ183: 1202.55 | BA183: 1202.55 | BB183: 1202.55 | BC183: 1202.55 | BD183: 1202.55 | BE183: 1202.55 | BF183: 1202.55 | BG183: 1202.55 | BH183: 1202.55 | BI183: 1202.55 | BJ183: 1202.55 | BK183: 1202.55 | BL183: 1202.55 | BN183: =SUM(E183:P183) -> 14430.6 | BO183: =IF($B$9>1,$P183*12,0) -> 14430.6 | BP183: =IF($B$9>2,$P183*12,0) -> 14430.6 | BQ183: =SUM(BN183:BP183) -> 43291.8
C184: NRC | E184: =+E146+C176 -> 174 | F184: =+F146 -> 0 | G184: 0 | H184: 0 | I184: 0 | J184: 0 | K184: 0 | L184: 0 | M184: 0 | N184: 0 | O184: 0 | P184: 0 | Q184: 0 | R184: 0 | S184: 0 | T184: 0 | U184: =+U146 -> 0 | V184: 0 | W184: 0 | X184: 0 | Y184: 0 | Z184: 0 | AA184: 0 | AB184: 0 | AC184: 0 | AD184: 0 | AE184: 0 | AF184: 0 | AG184: 0 | AH184: 0 | AI184: 0 | AJ184: 0 | AK184: 0 | AL184: 0 | AM184: 0 | AN184: 0 | AO184: 0 | AP184: 0 | AQ184: 0 | AR184: 0 | AS184: 0 | AT184: 0 | AU184: 0 | AV184: 0 | AW184: 0 | AX184: 0 | AY184: 0 | AZ184: 0 | BA184: 0 | BB184: 0 | BC184: 0 | BD184: 0 | BE184: 0 | BF184: 0 | BG184: 0 | BH184: 0 | BI184: 0 | BJ184: 0 | BK184: 0 | BL184: 0 | BN184: =SUM(E184:P184) -> 174 | BO184: =IF($B$9>1,$P184*12,0) -> 0 | BP184: =IF($B$9>2,$P184*12,0) -> 0 | BQ184: =SUM(BN184:BP184) -> 174
C185: Req Const Charge | D185: =+F20 -> 0 | E185: 0 | F185: 0 | G185: 0 | H185: 0 | I185: 0 | J185: 0 | K185: 0 | L185: 0 | M185: 0 | N185: 0 | O185: 0 | P185: 0 | Q185: 0 | R185: 0 | S185: 0 | T185: 0 | U185: 0 | V185: 0 | W185: 0 | X185: 0 | Y185: 0 | Z185: 0 | AA185: 0 | AB185: 0 | AC185: 0 | AD185: 0 | AE185: 0 | AF185: 0 | AG185: 0 | AH185: 0 | AI185: 0 | AJ185: 0 | AK185: 0 | AL185: 0 | AM185: 0 | AN185: 0 | AO185: 0 | AP185: 0 | AQ185: 0 | AR185: 0 | AS185: 0 | AT185: 0 | AU185: 0 | AV185: 0 | AW185: 0 | AX185: 0 | AY185: 0 | AZ185: 0 | BA185: 0 | BB185: 0 | BC185: 0 | BD185: 0 | BE185: 0 | BF185: 0 | BG185: 0 | BH185: 0 | BI185: 0 | BJ185: 0 | BK185: 0 | BL185: 0
C186: Total Revenue | D186: =+D185+D184+D183 -> 0 | E186: =SUM(E183:E184) -> 1376.55 | F186: =SUM(F183:F184) -> 1202.55 | G186: 1202.55 | H186: 1202.55 | I186: 1202.55 | J186: 1202.55 | K186: 1202.55 | L186: 1202.55 | M186: 1202.55 | N186: 1202.55 | O186: 1202.55 | P186: 1202.55 | Q186: 1202.55 | R186: 1202.55 | S186: 1202.55 | T186: 1202.55 | U186: 1202.55 | V186: 1202.55 | W186: 1202.55 | X186: 1202.55 | Y186: 1202.55 | Z186: 1202.55 | AA186: 1202.55 | AB186: 1202.55 | AC186: 1202.55 | AD186: 1202.55 | AE186: 1202.55 | AF186: 1202.55 | AG186: 1202.55 | AH186: 1202.55 | AI186: 1202.55 | AJ186: 1202.55 | AK186: 1202.55 | AL186: 1202.55 | AM186: 1202.55 | AN186: 1202.55 | AO186: 1202.55 | AP186: 1202.55 | AQ186: 1202.55 | AR186: 1202.55 | AS186: 1202.55 | AT186: 1202.55 | AU186: 1202.55 | AV186: 1202.55 | AW186: 1202.55 | AX186: 1202.55 | AY186: 1202.55 | AZ186: 1202.55 | BA186: 1202.55 | BB186: 1202.55 | BC186: 1202.55 | BD186: 1202.55 | BE186: 1202.55 | BF186: 1202.55 | BG186: 1202.55 | BH186: 1202.55 | BI186: 1202.55 | BJ186: 1202.55 | BK186: 1202.55 | BL186: 1202.55 | BN186: =SUM(BN183:BN184) -> 14604.6 | BO186: =SUM(BO183:BO184) -> 14430.6 | BP186: =SUM(BP183:BP184) -> 14430.6 | BQ186: =SUM(BQ183:BQ184) -> 43465.8
C189: Recurring Opex | E189: =+H109+$E$173+$E$174+$E$175 -> 528.58 | F189: =+E189 -> 528.58 | G189: =+F189 -> 528.58 | H189: =+G189 -> 528.58 | I189: =+H189 -> 528.58 | J189: =+I189 -> 528.58 | K189: =+J189 -> 528.58 | L189: =+K189 -> 528.58 | M189: =+L189 -> 528.58 | N189: =+M189 -> 528.58 | O189: =+N189 -> 528.58 | P189: =+O189 -> 528.58 | Q189: =+P189 -> 528.58 | R189: =+Q189 -> 528.58 | S189: =+R189 -> 528.58 | T189: =+S189 -> 528.58 | U189: =+T189 -> 528.58 | V189: =+U189 -> 528.58 | W189: =+V189 -> 528.58 | X189: =+W189 -> 528.58 | Y189: =+X189 -> 528.58 | Z189: =+Y189 -> 528.58 | AA189: =+Z189 -> 528.58 | AB189: =+AA189 -> 528.58 | AC189: =+AB189 -> 528.58 | AD189: =+AC189 -> 528.58 | AE189: =+AD189 -> 528.58 | AF189: =+AE189 -> 528.58 | AG189: =+AF189 -> 528.58 | AH189: =+AG189 -> 528.58 | AI189: =+AH189 -> 528.58 | AJ189: =+AI189 -> 528.58 | AK189: =+AJ189 -> 528.58 | AL189: =+AK189 -> 528.58 | AM189: =+AL189 -> 528.58 | AN189: =+AM189 -> 528.58 | AO189: =+AN189 -> 528.58 | AP189: =+AO189 -> 528.58 | AQ189: =+AP189 -> 528.58 | AR189: =+AQ189 -> 528.58 | AS189: =+AR189 -> 528.58 | AT189: =+AS189 -> 528.58 | AU189: =+AT189 -> 528.58 | AV189: =+AU189 -> 528.58 | AW189: =+AV189 -> 528.58 | AX189: =+AW189 -> 528.58 | AY189: =+AX189 -> 528.58 | AZ189: =+AY189 -> 528.58 | BA189: =+AZ189 -> 528.58 | BB189: =+BA189 -> 528.58 | BC189: =+BB189 -> 528.58 | BD189: =+BC189 -> 528.58 | BE189: =+BD189 -> 528.58 | BF189: =+BE189 -> 528.58 | BG189: =+BF189 -> 528.58 | BH189: =+BG189 -> 528.58 | BI189: =+BH189 -> 528.58 | BJ189: =+BI189 -> 528.58 | BK189: =+BJ189 -> 528.58 | BL189: =+BK189 -> 528.58 | BN189: =SUM(E189:P189) -> 6342.96 | BO189: =IF($B$9>1,$P189*12,0) -> 6342.96 | BP189: =IF($B$9>2,$P189*12,0) -> 6342.96 | BQ189: =SUM(BN189:BP189) -> 19028.88
C190: Non-recurring Opex | E190: =+I109+E177 -> 880 | F190: 0 | G190: 0 | H190: 0 | I190: 0 | J190: 0 | K190: 0 | L190: 0 | M190: 0 | N190: 0 | O190: 0 | P190: 0 | Q190: 0 | R190: 0 | S190: 0 | T190: 0 | U190: 0 | V190: 0 | W190: 0 | X190: 0 | Y190: 0 | Z190: 0 | AA190: 0 | AB190: 0 | AC190: 0 | AD190: 0 | AE190: 0 | AF190: 0 | AG190: 0 | AH190: 0 | AI190: 0 | AJ190: 0 | AK190: 0 | AL190: 0 | AM190: 0 | AN190: 0 | AO190: 0 | AP190: 0 | AQ190: 0 | AR190: 0 | AS190: 0 | AT190: 0 | AU190: 0 | AV190: 0 | AW190: 0 | AX190: 0 | AY190: 0 | AZ190: 0 | BA190: 0 | BB190: 0 | BC190: 0 | BD190: 0 | BE190: 0 | BF190: 0 | BG190: 0 | BH190: 0 | BI190: 0 | BJ190: 0 | BK190: 0 | BL190: 0 | BN190: =SUM(E190:P190) -> 880 | BO190: =IF($B$9>1,$P190*12,0) -> 0 | BP190: =IF($B$9>2,$P190*12,0) -> 0 | BQ190: =SUM(BN190:BP190) -> 880
C191: Total Opex | D191: =SUM(D189:D190) -> 0 | E191: =SUM(E189:E190) -> 1408.58 | F191: =SUM(F189:F190) -> 528.58 | G191: 528.58 | H191: 528.58 | I191: 528.58 | J191: 528.58 | K191: 528.58 | L191: 528.58 | M191: 528.58 | N191: 528.58 | O191: 528.58 | P191: 528.58 | Q191: 528.58 | R191: 528.58 | S191: 528.58 | T191: 528.58 | U191: 528.58 | V191: 528.58 | W191: 528.58 | X191: 528.58 | Y191: 528.58 | Z191: 528.58 | AA191: 528.58 | AB191: 528.58 | AC191: 528.58 | AD191: 528.58 | AE191: 528.58 | AF191: 528.58 | AG191: 528.58 | AH191: 528.58 | AI191: 528.58 | AJ191: 528.58 | AK191: 528.58 | AL191: 528.58 | AM191: 528.58 | AN191: 528.58 | AO191: 528.58 | AP191: 528.58 | AQ191: 528.58 | AR191: 528.58 | AS191: 528.58 | AT191: 528.58 | AU191: 528.58 | AV191: 528.58 | AW191: 528.58 | AX191: 528.58 | AY191: 528.58 | AZ191: 528.58 | BA191: 528.58 | BB191: 528.58 | BC191: 528.58 | BD191: 528.58 | BE191: 528.58 | BF191: 528.58 | BG191: 528.58 | BH191: 528.58 | BI191: 528.58 | BJ191: 528.58 | BK191: 528.58 | BL191: 528.58 | BN191: =SUM(BN189:BN190) -> 7222.96 | BO191: =SUM(BO189:BO190) -> 6342.96 | BP191: =SUM(BP189:BP190) -> 6342.96 | BQ191: =SUM(BQ189:BQ190) -> 19908.88
C194: OCF | D194: =+D186 -> 0 | E194: =E186-E191 -> -32.03 | F194: =F186-F191 -> 673.97 | G194: =G186-G191 -> 673.97 | H194: 673.97 | I194: 673.97 | J194: 673.97 | K194: 673.97 | L194: 673.97 | M194: 673.97 | N194: 673.97 | O194: 673.97 | P194: 673.97 | Q194: 673.97 | R194: 673.97 | S194: 673.97 | T194: 673.97 | U194: 673.97 | V194: 673.97 | W194: 673.97 | X194: 673.97 | Y194: 673.97 | Z194: 673.97 | AA194: 673.97 | AB194: 673.97 | AC194: 673.97 | AD194: 673.97 | AE194: 673.97 | AF194: 673.97 | AG194: 673.97 | AH194: 673.97 | AI194: 673.97 | AJ194: 673.97 | AK194: 673.97 | AL194: 673.97 | AM194: 673.97 | AN194: 673.97 | AO194: 673.97 | AP194: 673.97 | AQ194: 673.97 | AR194: 673.97 | AS194: 673.97 | AT194: 673.97 | AU194: 673.97 | AV194: 673.97 | AW194: 673.97 | AX194: 673.97 | AY194: 673.97 | AZ194: 673.97 | BA194: 673.97 | BB194: 673.97 | BC194: 673.97 | BD194: 673.97 | BE194: 673.97 | BF194: 673.97 | BG194: 673.97 | BH194: 673.97 | BI194: 673.97 | BJ194: 673.97 | BK194: 673.97 | BL194: 673.97 | BN194: =SUM(E194:P194) -> 7381.64 | BO194: =BO186-BO191 -> 8087.64 | BP194: =BP186-BP191 -> 8087.64 | BQ194: =BQ186-BQ191 -> 23556.92
C195: OCF Margin | E195: =+E194/E186 -> -0.02326831572 | F195: =+F194/F186 -> 0.5604507089 | G195: 0.5604507089 | H195: 0.5604507089 | I195: 0.5604507089 | J195: 0.5604507089 | K195: 0.5604507089 | L195: 0.5604507089 | M195: 0.5604507089 | N195: 0.5604507089 | O195: 0.5604507089 | P195: 0.5604507089 | Q195: 0.5604507089 | R195: 0.5604507089 | S195: 0.5604507089 | T195: 0.5604507089 | U195: 0.5604507089 | V195: 0.5604507089 | W195: 0.5604507089 | X195: 0.5604507089 | Y195: 0.5604507089 | Z195: 0.5604507089 | AA195: 0.5604507089 | AB195: 0.5604507089 | AC195: 0.5604507089 | AD195: 0.5604507089 | AE195: 0.5604507089 | AF195: 0.5604507089 | AG195: 0.5604507089 | AH195: 0.5604507089 | AI195: 0.5604507089 | AJ195: 0.5604507089 | AK195: 0.5604507089 | AL195: 0.5604507089 | AM195: 0.5604507089 | AN195: 0.5604507089 | AO195: 0.5604507089 | AP195: 0.5604507089 | AQ195: 0.5604507089 | AR195: 0.5604507089 | AS195: 0.5604507089 | AT195: 0.5604507089 | AU195: 0.5604507089 | AV195: 0.5604507089 | AW195: 0.5604507089 | AX195: 0.5604507089 | AY195: 0.5604507089 | AZ195: 0.5604507089 | BA195: 0.5604507089 | BB195: 0.5604507089 | BC195: 0.5604507089 | BD195: 0.5604507089 | BE195: 0.5604507089 | BF195: 0.5604507089 | BG195: 0.5604507089 | BH195: 0.5604507089 | BI195: 0.5604507089 | BJ195: 0.5604507089 | BK195: 0.5604507089 | BL195: 0.5604507089
C197: Capex | D197: =+G178+C119 -> 5074 | F197: 0 | G197: 0 | H197: 0 | I197: 0 | J197: 0 | K197: 0 | L197: 0 | M197: 0 | N197: 0 | O197: 0 | P197: 0 | Q197: 0 | R197: 0 | S197: 0 | T197: 0 | U197: 0 | V197: 0 | W197: 0 | X197: 0 | Y197: 0 | Z197: 0 | AA197: 0 | AB197: 0 | AC197: 0 | AD197: 0 | AE197: 0 | AF197: 0 | AG197: 0 | AH197: 0 | AI197: 0 | AJ197: 0 | AK197: 0 | AL197: 0 | AM197: 0 | AN197: 0 | AO197: 0 | AP197: 0 | AQ197: 0 | AR197: 0 | AS197: 0 | AT197: 0 | AU197: 0 | AV197: 0 | AW197: 0 | AX197: 0 | AY197: 0 | AZ197: 0 | BA197: 0 | BB197: 0 | BC197: 0 | BD197: 0 | BE197: 0 | BF197: 0 | BG197: 0 | BH197: 0 | BI197: 0 | BJ197: 0 | BK197: 0 | BL197: 0 | BN197: =SUM(D197:P197) -> 5074 | BO197: =IF($B$9>1,$P197*12,0) -> 0 | BP197: =IF($B$9>2,$P197*12,0) -> 0 | BQ197: =SUM(BN197:BP197) -> 5074
C199: FCF | D199: =+D194-D197 -> -5074 | E199: =+E194-E197 -> -32.03 | F199: =+F194-F197 -> 673.97 | G199: =+G194-G197 -> 673.97 | H199: 673.97 | I199: 673.97 | J199: 673.97 | K199: 673.97 | L199: 673.97 | M199: 673.97 | N199: 673.97 | O199: 673.97 | P199: 673.97 | Q199: 673.97 | R199: 673.97 | S199: 673.97 | T199: 673.97 | U199: 673.97 | V199: 673.97 | W199: 673.97 | X199: 673.97 | Y199: 673.97 | Z199: 673.97 | AA199: 673.97 | AB199: 673.97 | AC199: 673.97 | AD199: 673.97 | AE199: 673.97 | AF199: 673.97 | AG199: 673.97 | AH199: 673.97 | AI199: 673.97 | AJ199: 673.97 | AK199: 673.97 | AL199: 673.97 | AM199: 673.97 | AN199: 673.97 | AO199: 673.97 | AP199: 673.97 | AQ199: 673.97 | AR199: 673.97 | AS199: 673.97 | AT199: 673.97 | AU199: 673.97 | AV199: 673.97 | AW199: 673.97 | AX199: 673.97 | AY199: 673.97 | AZ199: 673.97 | BA199: 673.97 | BB199: 673.97 | BC199: 673.97 | BD199: 673.97 | BE199: 673.97 | BF199: 673.97 | BG199: 673.97 | BH199: 673.97 | BI199: 673.97 | BJ199: 673.97 | BK199: 673.97 | BL199: 673.97
C200: Cumulative FCF | D200: =+D199 -> -5074 | E200: =+E199+D200 -> -5106.03 | F200: =+E200+F199 -> -4432.06 | G200: =+F200+G199 -> -3758.09 | H200: =+G200+H199 -> -3084.12 | I200: =+H200+I199 -> -2410.15 | J200: =+I200+J199 -> -1736.18 | K200: =+J200+K199 -> -1062.21 | L200: =+K200+L199 -> -388.24 | M200: =+L200+M199 -> 285.73 | N200: =+M200+N199 -> 959.7 | O200: =+N200+O199 -> 1633.67 | P200: =+O200+P199 -> 2307.64 | Q200: =+P200+Q199 -> 2981.61 | R200: =+Q200+R199 -> 3655.58 | S200: =+R200+S199 -> 4329.55 | T200: =+S200+T199 -> 5003.52 | U200: =+T200+U199 -> 5677.49 | V200: =+U200+V199 -> 6351.46 | W200: =+V200+W199 -> 7025.43 | X200: =+W200+X199 -> 7699.4 | Y200: =+X200+Y199 -> 8373.37 | Z200: =+Y200+Z199 -> 9047.34 | AA200: =+Z200+AA199 -> 9721.31 | AB200: =+AA200+AB199 -> 10395.28 | AC200: =+AB200+AC199 -> 11069.25 | AD200: =+AC200+AD199 -> 11743.22 | AE200: =+AD200+AE199 -> 12417.19 | AF200: =+AE200+AF199 -> 13091.16 | AG200: =+AF200+AG199 -> 13765.13 | AH200: =+AG200+AH199 -> 14439.1 | AI200: =+AH200+AI199 -> 15113.07 | AJ200: =+AI200+AJ199 -> 15787.04 | AK200: =+AJ200+AK199 -> 16461.01 | AL200: =+AK200+AL199 -> 17134.98 | AM200: =+AL200+AM199 -> 17808.95 | AN200: =+AM200+AN199 -> 18482.92 | AO200: =+AN200+AO199 -> 19156.89 | AP200: =+AO200+AP199 -> 19830.86 | AQ200: =+AP200+AQ199 -> 20504.83 | AR200: =+AQ200+AR199 -> 21178.8 | AS200: =+AR200+AS199 -> 21852.77 | AT200: =+AS200+AT199 -> 22526.74 | AU200: =+AT200+AU199 -> 23200.71 | AV200: =+AU200+AV199 -> 23874.68 | AW200: =+AV200+AW199 -> 24548.65 | AX200: =+AW200+AX199 -> 25222.62 | AY200: =+AX200+AY199 -> 25896.59 | AZ200: =+AY200+AZ199 -> 26570.56 | BA200: =+AZ200+BA199 -> 27244.53 | BB200: =+BA200+BB199 -> 27918.5 | BC200: =+BB200+BC199 -> 28592.47 | BD200: =+BC200+BD199 -> 29266.44 | BE200: =+BD200+BE199 -> 29940.41 | BF200: =+BE200+BF199 -> 30614.38 | BG200: =+BF200+BG199 -> 31288.35 | BH200: =+BG200+BH199 -> 31962.32 | BI200: =+BH200+BI199 -> 32636.29 | BJ200: =+BI200+BJ199 -> 33310.26 | BK200: =+BJ200+BK199 -> 33984.23 | BL200: =+BK200+BL199 -> 34658.2
C201: IRR | D201: =IF(D200<0,"NA",IRR(D$199:$E199,0.05)*12) -> NA | E201: =IF(E200<0,"NA",IRR($D$199:E199,0.05)*12) -> NA | F201: =IF(F200<0,"NA",IRR($D$199:F199,0.05)*12) -> NA | G201: =IF(G200<0,"NA",IRR($D$199:G199,0.05)*12) -> NA | H201: =IF(H200<0,"NA",IRR($D$199:H199,0.05)*12) -> NA | I201: =IF(I200<0,"NA",IRR($D$199:I199,0.05)*12) -> NA | J201: =IF(J200<0,"NA",IRR($D$199:J199,0.05)*12) -> NA | K201: =IF(K200<0,"NA",IRR($D$199:K199,0.05)*12) -> NA | L201: =IF(L200<0,"NA",IRR($D$199:L199,0.05)*12) -> NA | M201: =IF(M200<0,"NA",IRR($D$199:M199,0.05)*12) -> 0.1200998816 | N201: =IF(N200<0,"NA",IRR($D$199:N199,0.05)*12) -> 0.3556804529 | O201: =IF(O200<0,"NA",IRR($D$199:O199,0.05)*12) -> 0.5394535354 | P201: =IF(P200<0,"NA",IRR($D$199:P199,0.05)*12) -> 0.6850160927 | Q201: =IF(Q200<0,"NA",IRR($D$199:Q199,0.05)*12) -> 0.8018293795 | R201: =IF(R200<0,"NA",IRR($D$199:R199,0.05)*12) -> 0.8966351186 | S201: =IF(S200<0,"NA",IRR($D$199:S199,0.05)*12) -> 0.9743382457 | T201: =IF(T200<0,"NA",IRR($D$199:T199,0.05)*12) -> 1.038573407 | U201: =IF(U200<0,"NA",IRR($D$199:U199,0.05)*12) -> 1.092078076 | V201: =IF(V200<0,"NA",IRR($D$199:V199,0.05)*12) -> 1.136944081 | W201: =IF(W200<0,"NA",IRR($D$199:W199,0.05)*12) -> 1.174790735 | X201: =IF(X200<0,"NA",IRR($D$199:X199,0.05)*12) -> 1.206886271 | Y201: =IF(Y200<0,"NA",IRR($D$199:Y199,0.05)*12) -> 1.234234468 | Z201: =IF(Z200<0,"NA",IRR($D$199:Z199,0.05)*12) -> 1.257637417 | AA201: =IF(AA200<0,"NA",IRR($D$199:AA199,0.05)*12) -> 1.277741627 | AB201: =IF(AB200<0,"NA",IRR($D$199:AB199,0.05)*12) -> 1.295072352 | AC201: =IF(AC200<0,"NA",IRR($D$199:AC199,0.05)*12) -> 1.310059432 | AD201: =IF(AD200<0,"NA",IRR($D$199:AD199,0.05)*12) -> 1.323056973 | AE201: =IF(AE200<0,"NA",IRR($D$199:AE199,0.05)*12) -> 1.334358476 | AF201: =IF(AF200<0,"NA",IRR($D$199:AF199,0.05)*12) -> 1.344208584 | AG201: =IF(AG200<0,"NA",IRR($D$199:AG199,0.05)*12) -> 1.352812273 | AH201: =IF(AH200<0,"NA",IRR($D$199:AH199,0.05)*12) -> 1.360342111 | AI201: =IF(AI200<0,"NA",IRR($D$199:AI199,0.05)*12) -> 1.366944026 | AJ201: =IF(AJ200<0,"NA",IRR($D$199:AJ199,0.05)*12) -> 1.372741929 | AK201: =IF(AK200<0,"NA",IRR($D$199:AK199,0.05)*12) -> 1.377841435 | AL201: =IF(AL200<0,"NA",IRR($D$199:AL199,0.05)*12) -> 1.38233288 | AM201: =IF(AM200<0,"NA",IRR($D$199:AM199,0.05)*12) -> 1.386293793 | AN201: =IF(AN200<0,"NA",IRR($D$199:AN199,0.05)*12) -> 1.389790907 | AO201: =IF(AO200<0,"NA",IRR($D$199:AO199,0.05)*12) -> 1.392881826 | AP201: =IF(AP200<0,"NA",IRR($D$199:AP199,0.05)*12) -> 1.39561641 | AQ201: =IF(AQ200<0,"NA",IRR($D$199:AQ199,0.05)*12) -> 1.398037916 | AR201: =IF(AR200<0,"NA",IRR($D$199:AR199,0.05)*12) -> 1.400183958 | AS201: =IF(AS200<0,"NA",IRR($D$199:AS199,0.05)*12) -> 1.402087315 | AT201: =IF(AT200<0,"NA",IRR($D$199:AT199,0.05)*12) -> 1.403776609 | AU201: =IF(AU200<0,"NA",IRR($D$199:AU199,0.05)*12) -> 1.405276872 | AV201: =IF(AV200<0,"NA",IRR($D$199:AV199,0.05)*12) -> 1.406610041 | AW201: =IF(AW200<0,"NA",IRR($D$199:AW199,0.05)*12) -> 1.407795366 | AX201: =IF(AX200<0,"NA",IRR($D$199:AX199,0.05)*12) -> 1.408849763 | AY201: =IF(AY200<0,"NA",IRR($D$199:AY199,0.05)*12) -> 1.409788122 | AZ201: =IF(AZ200<0,"NA",IRR($D$199:AZ199,0.05)*12) -> 1.410623562 | BA201: =IF(BA200<0,"NA",IRR($D$199:BA199,0.05)*12) -> 1.411367656 | BB201: =IF(BB200<0,"NA",IRR($D$199:BB199,0.05)*12) -> 1.412030625 | BC201: =IF(BC200<0,"NA",IRR($D$199:BC199,0.05)*12) -> 1.412621505 | BD201: =IF(BD200<0,"NA",IRR($D$199:BD199,0.05)*12) -> 1.413148289 | BE201: =IF(BE200<0,"NA",IRR($D$199:BE199,0.05)*12) -> 1.413618059 | BF201: =IF(BF200<0,"NA",IRR($D$199:BF199,0.05)*12) -> 1.41403709 | BG201: =IF(BG200<0,"NA",IRR($D$199:BG199,0.05)*12) -> 1.414410947 | BH201: =IF(BH200<0,"NA",IRR($D$199:BH199,0.05)*12) -> 1.414744569 | BI201: =IF(BI200<0,"NA",IRR($D$199:BI199,0.05)*12) -> 1.415042345 | BJ201: =IF(BJ200<0,"NA",IRR($D$199:BJ199,0.05)*12) -> 1.415308171 | BK201: =IF(BK200<0,"NA",IRR($D$199:BK199,0.05)*12) -> 1.415545515 | BL201: =IF(BL200<0,"NA",IRR($D$199:BL199,0.05)*12) -> 1.41575746
C202: NPV | D202: =NPV($G$113,D199) -> -4950.243902 | E202: =NPV($G$113,$D$199:E199) -> -4980.730518 | F202: =NPV($G$113,$D$199:F199) -> -4354.882373 | G202: =NPV($G$113,$D$199:G199) -> -3744.298816 | H202: =NPV($G$113,$D$199:H199) -> -3148.607542 | I202: =NPV($G$113,$D$199:I199) -> -2567.445324 | J202: =NPV($G$113,$D$199:J199) -> -2000.457793 | K202: =NPV($G$113,$D$199:K199) -> -1447.299227 | L202: =NPV($G$113,$D$199:L199) -> -907.6323327 | M202: =NPV($G$113,$D$199:M199) -> -381.1280459 | N202: =NPV($G$113,$D$199:N199) -> 132.5346729 | O202: =NPV($G$113,$D$199:O199) -> 633.6690328 | P202: =NPV($G$113,$D$199:P199) -> 1122.580603 | Q202: =NPV($G$113,$D$199:Q199) -> 1599.567501 | R202: =NPV($G$113,$D$199:R199) -> 2064.920573 | S202: =NPV($G$113,$D$199:S199) -> 2518.923569 | T202: =NPV($G$113,$D$199:T199) -> 2961.853322 | U202: =NPV($G$113,$D$199:U199) -> 3393.97991 | V202: =NPV($G$113,$D$199:V199) -> 3815.566825 | W202: =NPV($G$113,$D$199:W199) -> 4226.871132 | X202: =NPV($G$113,$D$199:X199) -> 4628.143627 | Y202: =NPV($G$113,$D$199:Y199) -> 5019.628988 | Z202: =NPV($G$113,$D$199:Z199) -> 5401.565926 | AA202: =NPV($G$113,$D$199:AA199) -> 5774.187328 | AB202: =NPV($G$113,$D$199:AB199) -> 6137.720404 | AC202: =NPV($G$113,$D$199:AC199) -> 6492.386819 | AD202: =NPV($G$113,$D$199:AD199) -> 6838.402834 | AE202: =NPV($G$113,$D$199:AE199) -> 7175.979434 | AF202: =NPV($G$113,$D$199:AF199) -> 7505.322458 | AG202: =NPV($G$113,$D$199:AG199) -> 7826.632725 | AH202: =NPV($G$113,$D$199:AH199) -> 8140.106157 | AI202: =NPV($G$113,$D$199:AI199) -> 8445.933895 | AJ202: =NPV($G$113,$D$199:AJ199) -> 8744.30242 | AK202: =NPV($G$113,$D$199:AK199) -> 9035.393664 | AL202: =NPV($G$113,$D$199:AL199) -> 9319.385122 | AM202: =NPV($G$113,$D$199:AM199) -> 9596.449959 | AN202: =NPV($G$113,$D$199:AN199) -> 9866.757117 | AO202: =NPV($G$113,$D$199:AO199) -> 10130.47142 | AP202: =NPV($G$113,$D$199:AP199) -> 10387.75366 | AQ202: =NPV($G$113,$D$199:AQ199) -> 10638.76073 | AR202: =NPV($G$113,$D$199:AR199) -> 10883.64567 | AS202: =NPV($G$113,$D$199:AS199) -> 11122.55781 | AT202: =NPV($G$113,$D$199:AT199) -> 11355.64283 | AU202: =NPV($G$113,$D$199:AU199) -> 11583.04284 | AV202: =NPV($G$113,$D$199:AV199) -> 11804.89651 | AW202: =NPV($G$113,$D$199:AW199) -> 12021.33912 | AX202: =NPV($G$113,$D$199:AX199) -> 12232.50264 | AY202: =NPV($G$113,$D$199:AY199) -> 12438.51583 | AZ202: =NPV($G$113,$D$199:AZ199) -> 12639.50431 | BA202: =NPV($G$113,$D$199:BA199) -> 12835.59063 | BB202: =NPV($G$113,$D$199:BB199) -> 13026.89436 | BC202: =NPV($G$113,$D$199:BC199) -> 13213.53214 | BD202: =NPV($G$113,$D$199:BD199) -> 13395.61778 | BE202: =NPV($G$113,$D$199:BE199) -> 13573.26231 | BF202: =NPV($G$113,$D$199:BF199) -> 13746.57404 | BG202: =NPV($G$113,$D$199:BG199) -> 13915.65866 | BH202: =NPV($G$113,$D$199:BH199) -> 14080.61927 | BI202: =NPV($G$113,$D$199:BI199) -> 14241.55644 | BJ202: =NPV($G$113,$D$199:BJ199) -> 14398.56832 | BK202: =NPV($G$113,$D$199:BK199) -> 14551.75064 | BL202: =NPV($G$113,$D$199:BL199) -> 14701.1968
C203: Breakeven Counter | D203: =IF(D200>0,1,0) -> 0 | E203: =IF(E200>0,1,0) -> 0 | F203: =IF(F200>0,1,0) -> 0 | G203: =IF(G200>0,1,0) -> 0 | H203: 0 | I203: 0 | J203: 0 | K203: 0 | L203: 0 | M203: 1 | N203: 1 | O203: 1 | P203: 1 | Q203: 1 | R203: 1 | S203: 1 | T203: 1 | U203: 1 | V203: 1 | W203: 1 | X203: 1 | Y203: 1 | Z203: 1 | AA203: 1 | AB203: 1 | AC203: 1 | AD203: 1 | AE203: 1 | AF203: 1 | AG203: 1 | AH203: 1 | AI203: 1 | AJ203: 1 | AK203: 1 | AL203: 1 | AM203: 1 | AN203: 1 | AO203: 1 | AP203: 1 | AQ203: 1 | AR203: 1 | AS203: 1 | AT203: 1 | AU203: 1 | AV203: 1 | AW203: 1 | AX203: 1 | AY203: 1 | AZ203: 1 | BA203: 1 | BB203: 1 | BC203: 1 | BD203: 1 | BE203: 1 | BF203: 1 | BG203: 1 | BH203: 1 | BI203: 1 | BJ203: 1 | BK203: 1 | BL203: 1
C204: Breakeven Month | D204: =+D203*D180-SUM(C$203:$E203) -> 0 | E204: =+E203*E180-SUM(D$203:$E203) -> 0 | F204: =+F203*F180-SUM($E$203:E203) -> 0 | G204: =+G203*G180-SUM($E$203:F203) -> 0 | H204: =+H203*H180-SUM($E$203:G203) -> 0 | I204: =+I203*I180-SUM($E$203:H203) -> 0 | J204: =+J203*J180-SUM($E$203:I203) -> 0 | K204: =+K203*K180-SUM($E$203:J203) -> 0 | L204: =+L203*L180-SUM($E$203:K203) -> 0 | M204: =+M203*M180-SUM($E$203:L203) -> 9 | N204: =+N203*N180-SUM($E$203:M203) -> 9 | O204: =+O203*O180-SUM($E$203:N203) -> 9 | P204: =+P203*P180-SUM($E$203:O203) -> 9 | Q204: =+Q203*Q180-SUM($E$203:P203) -> 9 | R204: =+R203*R180-SUM($E$203:Q203) -> 9 | S204: =+S203*S180-SUM($E$203:R203) -> 9 | T204: =+T203*T180-SUM($E$203:S203) -> 9 | U204: =+U203*U180-SUM($E$203:T203) -> 9 | V204: =+V203*V180-SUM($E$203:U203) -> 9 | W204: =+W203*W180-SUM($E$203:V203) -> 9 | X204: =+X203*X180-SUM($E$203:W203) -> 9 | Y204: =+Y203*Y180-SUM($E$203:X203) -> 9 | Z204: =+Z203*Z180-SUM($E$203:Y203) -> 9 | AA204: =+AA203*AA180-SUM($E$203:Z203) -> 9 | AB204: =+AB203*AB180-SUM($E$203:AA203) -> 9 | AC204: =+AC203*AC180-SUM($E$203:AB203) -> 9 | AD204: =+AD203*AD180-SUM($E$203:AC203) -> 9 | AE204: =+AE203*AE180-SUM($E$203:AD203) -> 9 | AF204: =+AF203*AF180-SUM($E$203:AE203) -> 9 | AG204: =+AG203*AG180-SUM($E$203:AF203) -> 9 | AH204: =+AH203*AH180-SUM($E$203:AG203) -> 9 | AI204: =+AI203*AI180-SUM($E$203:AH203) -> 9 | AJ204: =+AJ203*AJ180-SUM($E$203:AI203) -> 9 | AK204: =+AK203*AK180-SUM($E$203:AJ203) -> 9 | AL204: =+AL203*AL180-SUM($E$203:AK203) -> 9 | AM204: =+AM203*AM180-SUM($E$203:AL203) -> 9 | AN204: =+AN203*AN180-SUM($E$203:AM203) -> 9 | AO204: =+AO203*AO180-SUM($E$203:AN203) -> 9 | AP204: =+AP203*AP180-SUM($E$203:AO203) -> 9 | AQ204: =+AQ203*AQ180-SUM($E$203:AP203) -> 9 | AR204: =+AR203*AR180-SUM($E$203:AQ203) -> 9 | AS204: =+AS203*AS180-SUM($E$203:AR203) -> 9 | AT204: =+AT203*AT180-SUM($E$203:AS203) -> 9 | AU204: =+AU203*AU180-SUM($E$203:AT203) -> 9 | AV204: =+AV203*AV180-SUM($E$203:AU203) -> 9 | AW204: =+AW203*AW180-SUM($E$203:AV203) -> 9 | AX204: =+AX203*AX180-SUM($E$203:AW203) -> 9 | AY204: =+AY203*AY180-SUM($E$203:AX203) -> 9 | AZ204: =+AZ203*AZ180-SUM($E$203:AY203) -> 9 | BA204: =+BA203*BA180-SUM($E$203:AZ203) -> 9 | BB204: =+BB203*BB180-SUM($E$203:BA203) -> 9 | BC204: =+BC203*BC180-SUM($E$203:BB203) -> 9 | BD204: =+BD203*BD180-SUM($E$203:BC203) -> 9 | BE204: =+BE203*BE180-SUM($E$203:BD203) -> 9 | BF204: =+BF203*BF180-SUM($E$203:BE203) -> 9 | BG204: =+BG203*BG180-SUM($E$203:BF203) -> 9 | BH204: =+BH203*BH180-SUM($E$203:BG203) -> 9 | BI204: =+BI203*BI180-SUM($E$203:BH203) -> 9 | BJ204: =+BJ203*BJ180-SUM($E$203:BI203) -> 9 | BK204: =+BK203*BK180-SUM($E$203:BJ203) -> 9 | BL204: =+BL203*BL180-SUM($E$203:BK203) -> 9
C205: NPV | D205: =IF(B9=36,AN202,IF(B9=48,AZ202,IF(B9=60,BL202))) -> 9866.757117
A215: Hospitality Video Capex | E215: Hospitaltiy Internet Capex
A216: Equipment | B216: Capex | C216: Labor | E216: Equipment | F216: Capex | G216: Labor | H216: MRC
A217: DTA | B217: 32.5 | C217: 15 | E217: SMC Router | F217: =72*2 -> 144 | G217: 150 | H217: =+SUM('Sales Order'!D41:E46)+SUM('Sales Order'!D48:E54) -> 114.9
A218: HD DTA | B218: 55 | C218: 18
A219: HDSTB | B219: 120 | C219: 18 | E219: Hospitaltiy Voice Capex
A220: mDTA | B220: 9965 | C220: 1750 | E220: Equipment | F220: Capex | G220: Labor | H220: MRC
A221: Mini mDTA | B221: 3700 | C221: 800 | E221: EMTA | F221: 130 | G221: 150 | H221: =+SUM('Sales Order'!E26:E30)+SUM('Sales Order'!D32:E33) -> 207.65
A222: Q2Q | B222: 15510 | C222: 1750
A223: Set Top Box | B223: 130 | C223: 15
A225: Capex Element | C225: Capex
A226: Construction Capex | C226: =+B6 -> 0
A227: HD Video
A228: Q2Q Equipment | C228: =IF($B$14="Yes",B222,0) -> 15510 | D228: Zeroed Out
A229: HD DTA Equipment | C229: =IF(AND($B$5<=80,$B$14="Yes"),(B218*B5),0)*0 -> 0
A230: Q2Q Labor | C230: =IF($B$14="Yes",C222,0) -> 1750 | D230: Zeroed Out
A231: HD DTA Labor | C231: =IF(AND($B$5<=80,$B$14="Yes"),C218,0)*0 -> 0
A232: HDSTB Equipment | C232: =IF(AND($B$5<=50,$B$14="No",$B$15="Yes"),(B218*B5),0) -> 0
A233: Standard Video
A234: mDTA Equipment | C234: =IF(AND($B$5>=50,$B$14="No"),B220,0) -> 0
A235: DTA Equipment | C235: =IF(AND($B$5<=50,$B$14="No",$C$35="No"),(B217*B5),0) -> 0
A236: Set Top Equipment | C236: =IF(AND($B$5<=50,$B$14="No",$B$15="Yes"),(B223*B5),0) -> 0
A237: Mini mDTA
A238: mDTA Labor | C238: =IF(AND($B$5>=50,$B$14="No"),C220,0) -> 0
A239: DTA Labor | C239: =IF(AND($B$5<=50,$B$14="No",$B$15="No"),(C217),0) -> 0
A240: Set Top Labor | C240: =IF(AND($B$5<=50,$B$14="No",$C$35="Yes"),(C223),0) -> 0
A241: Mini mDTA Labor
A242: Internet (Equipment + Labor) | C242: =IF(H217>0,F217+G217,0) -> 294 | D242: 0
A243: Voice (Equipment + Labor) | C243: =IF(H221>0,F221+G221,0) -> 280
A244: Capex Adjustment | C244: =+C118 -> 0
A245: Total Capex | C245: =SUM(C226:C244) -> 17834

Sheet LOA
B6: Letter of Agency
B8: Please print or type the following information. All blank spaces must be completed.
B10: Billing Name ("Company"):
E11: (As it appears on customers bill copy)
B12: Billing Address:
B13: City: | F13: State: | H13: Zip:
B15: If the company is switching its current phone number(s) to Comcast, please print the telephone number(s) and the name(s) of Company's current local phone service providers in the spaces below.
B17: Area code(s) and telephone number(s) Company wants switched to Comcast (you may also insert a number range, e.g., 215-555-0000 thru 215-555-9999):
C21: Billing Telephone Number | F21: Current Local Provider
B41: Please read the following:
B42: The undersigned is an authorized representative Company. Company chooses Comcast for all its landline calling needs across town, across the country and worldwide for the telephone number(s) listed above (if applicable). Company understands that Comcast will take the place of its current landline phone service provider(s) for local, local toll, and long distance services. Company understands that, for each of these services, it may designate only one provider per service for any one telephone number. Company also understands that the service provided by Comcast includes all distances, which means that Company may only designate one provider for all of its calling needs for any one telephone number.
B47: The undersigned’s signature on this form authorizes Comcast to act as Company’s agent in making the changes from Company’s current service provider(s), and to switch Company’s telephone number(s), listed above (if applicable), to Comcast. Company understands that its current service provider(s) may charge a fee to switch its service to Comcast and that Company may consult that provider as to whether a fee will apply.
B50: Please sign here:
B52: Authorized Representative's Signature: | H52: Date:
B53: Authorized Representative's Name (Print):
B54: Authorized Representative's Title (Print):

Sheet TOLL FREE-Resporg
C5: Responsible Organization Letter of Authorization | AI5: Resp Org
C6: Toll Free Portability | AI6: Level 3 Communications, LLC (JSS01) (“Level 3”) | AJ6: JSS01
C7: As the end-user subscriber, or the authorized representative of an end-user subscriber, of certain Toll Free service numbers (the “Customer”), I hereby authorize Comcast Phone, LLC to be the Responsible Organization("Resp Org") for the following TollFree service numbers, including acting on my behalf, and at my direction, to transfer the Resp org function from
C8: Current Carrier: | H8: New Resp Org ID: | K8: JTN01
C30: Customer Name:
E31: (As it appears on customers bill copy)
C32: Address:
C34: City | G34: State | I34: Zip | K34: -
C36: Customer Contact | H36: Phone:
H38: Delivery Date:
C39: I attest under penalty of law and as an authorized employee, or an authorized representative, of the Customer that the Customer is the exclusive end-user subscriber of the Toll Free service numbers listed above. The Customer assumes all liability for the use (including without limitation, authorized, fraudulent or misappropriated) of traffic of any other end-user subscriber with regards to the Toll Free service numbers listed. In addition, I understand that this request for a Resp Org change does not constitute an order for disconnect of service with my existing carrier(s). I, on behalf of the Customer, continue to accept responsibility for notifying my existing carrier(s) of any intention to disconnect and/or change my Toll Free service after designating the above as my Resp Org for the Toll Free numbers listed above.
C41: Authorized Signature | I41: Date:
C44: Print Name | I44: Title:

Sheet Sheet1 (hidden)

Sheet IP Justification Form
A1: IP Justification Form
A5: Customer Site | P5: Technical Contact
A6: Location Name | O6: 1 | V6: Name (Last, First) | AG6: 3a
A7: Street | O7: 2a | V7: Title | AG7: 3b
A8: Rm/Ste/Fl | O8: 2b | V8: Phone # | AG8: 3c
A9: City/St/Zip | O9: 2c | Q9: E-mail | AG9: 3d
A10: Phone # | O10: 2d
B12: 4. | C12: Domain Name: | S12: Note: If more than one domain, use first domain registered.
B14: 5. | C14: Do you have previously assigned addresses from Comcast?:
C15: 5d. | D15: If yes, what addresses were assigned?:
B17: 6. | C17: Number of IP addresses requested/needed within 6 months: | V17: Note: If your organization already has IP space assigned, you must utilize 80% before applying for more IP space.
B20: 7. Use the following Network Table to describe your IP assignments within the next six months. THIS IS REQUIRED.
B22: IP Number | E22: IP Address (If known) | L22: Below, provide a description of use for each IP requested
B23: 1
B24: 2
B25: 3
B26: 4
B27: 5
B28: 6
B29: 7
B30: 8
B31: 9
B33: I verify that I am authorized to represent the organization below and that the above information is true and correct. I
B34: understand that Internet Protocol Version 4 address space is limited and that users of the Internet are responsible for
B35: conserving address space and ensuring that space is utilized efficiently.
B37: Print Name | R37: Title
B38: Organization | R38: Phone # (day)
B39: Email | R39: Fax
